Workbook

Sheet Interfaz
C5: POBLACIÓN ASIGNADA SEGÚN CENSOS INEI - RENIEC - PN - CNV - 2014
C10: RED INTEGRADA DE SALUD HUAURA OYÓN
A22: Elaboración: Área de Estadística - RIS Huaura Oyón.
A23: NOTA: LA POBLACION ESTIMADA DE EDADES SIMPLES Y GRUPOS DE EDAD DE DISTRITOS, CORRESPONDEN A CIFRAS REFERENCIALES HASTA OBTENER LAS CIFRAS DE LAS PROYECCIONES DEL INEI
A26: OFICINA DE GESTION DE LA INFORMACIÓN - MINISTERIO DE SALUD
R27: Versión1.030

Sheet Poblacion
C1: 1 | D1: 2 | E1: 3 | F1: 4 | G1: 5 | H1: 6 | I1: 7 | J1: 8 | K1: 9 | L1: 10 | M1: 11 | N1: 12 | O1: 13 | P1: 14 | Q1: 15 | R1: 16 | S1: 17 | T1: 18 | U1: 19 | V1: 20 | W1: 21 | X1: 22 | Y1: 23 | Z1: 24 | AA1: 25 | AB1: 26 | AC1: 27 | AD1: 28 | AE1: 29 | AF1: 30 | AG1: 31 | AH1: 32 | AI1: 33 | AJ1: 34 | AK1: 35 | AL1: 36 | AM1: 37 | AN1: 38 | AO1: 39 | AP1: 40 | AQ1: 41 | AR1: 42 | AS1: 43 | AT1: 44 | AU1: 45 | AV1: 46 | AW1: 47 | AX1: 48 | AY1: 49 | AZ1: 50 | BA1: 51 | BB1: 52 | BC1: 53 | BD1: 54 | BE1: 55 | BF1: 56 | BG1: 57 | BH1: 58 | BI1: 59 | BM1: 77 | BN1: 78 | BO1: 79 | BP1: 80 | BQ1: 81 | BR1: 82 | BS1: 83 | BT1: 84 | BU1: 85 | BV1: 86 | BW1: 87 | BX1: 88 | BY1: 89 | BZ1: 90 | CA1: 91 | CB1: 92 | CC1: 93 | CD1: 94 | CE1: 95 | CF1: 96 | CG1: 97 | CH1: 98 | CI1: 99 | CJ1: 106 | CK1: 107 | CL1: 108 | CM1: 109 | CN1: 110 | CO1: 111
C5: N° | E5: DIRECCION DE SALUD | F5: TOTAL GENERAL | H5: TOTAL MASCULINO | I5: TOTAL FEMENINO | K5: EDAD | M5: EDAD | O5: EDAD | Q5: EDAD | S5: EDAD | U5: EDAD | W5: EDAD | Y5: EDAD | AA5: EDAD | AC5: EDAD | AE5: EDAD | AG5: EDAD | AI5: EDAD | AK5: EDAD | AM5: EDAD | AO5: EDAD | AQ5: EDAD | AS5: EDAD | AU5: EDAD | AW5: EDAD | AY5: EDAD | BA5: EDAD | BC5: NACIMIENTOS | BD5: 28 DIAS | BE5: POBLACION FEMENINA TOTAL | BF5: POBLACION FEMENINA
A6: UBIGEO | E6: PROVINCIA | K6: 0 | M6: 1 | O6: 2 | Q6: 3 | S6: 4 | U6: <5 | W6: 5 - 9 | Y6: 10 - 14 | AA6: 15 - 19 | AC6: 20 - 24 | AE6: 25 - 29 | AG6: 30 - 34 | AI6: 35 - 39 | AK6: 40 - 44 | AM6: 45 - 49 | AO6: 50 - 54 | AQ6: 55 - 59 | AS6: 60 - 64 | AU6: 65 - 69 | AW6: 70- 74 | AY6: 75 - 79 | BA6: 80 - + | BF6: 10-14 | BG6: 15-19 | BH6: 20-49 | BI6: GESTANTES ESPERADAS
B7: Microredes | D7: RENAES | E7: DISTRITO | K7: M | L7: F | M7: M | N7: F | O7: M | P7: F | Q7: M | R7: F | S7: M | T7: F | U7: M | V7: F | W7: M | X7: F | Y7: M | Z7: F | AA7: M | AB7: F | AC7: M | AD7: F | AE7: M | AF7: F | AG7: M | AH7: F | AI7: M | AJ7: F | AK7: M | AL7: F | AM7: M | AN7: F | AO7: M | AP7: F | AQ7: M | AR7: F | AS7: M | AT7: F | AU7: M | AV7: F | AW7: M | AX7: F | AY7: M | AZ7: F | BA7: M | BB7: F
A8: 150000 | C8: 1 | E8: RED HUAURA OYON | F8: 240832 | H8: 119247 | I8: 121585 | K8: 2161 | L8: 2203 | M8: 2063 | N8: 2104 | O8: 2001 | P8: 2040 | Q8: 1969 | R8: 2007 | S8: 1964 | T8: 2003 | U8: 10327 | V8: 10531 | W8: 4542 | X8: 4631 | Y8: 13679 | Z8: 13948 | AA8: 4341 | AB8: 4425 | AC8: 10454 | AD8: 10659 | AE8: 8987 | AF8: 9163 | AG8: 8650 | AH8: 8820 | AI8: 8505 | AJ8: 8671 | AK8: 7256 | AL8: 7398 | AM8: 6711 | AN8: 6843 | AO8: 5887 | AP8: 6002 | AQ8: 4997 | AR8: 5095 | AS8: 4175 | AT8: 4257 | AU8: 3452 | AV8: 3519 | AW8: 2927 | AX8: 2985 | AY8: 2081 | AZ8: 2122 | BA8: 2118 | BB8: 2159 | BC8: 4472 | BD8: 333 | BE8: 119060 | BF8: 11295 | BG8: 10847 | BH8: 50494 | BI8: 5537
A9: 150800 | C9: 2 | D9: 150800 | E9: PROVINCIA HUAURA | F9: 217102 | H9: 107496 | I9: 109606 | K9: 1905 | L9: 1943 | M9: 1817 | N9: 1852 | O9: 1760 | P9: 1795 | Q9: 1731 | R9: 1765 | S9: 1727 | T9: 1761 | U9: 9109 | V9: 9286 | W9: 4029 | X9: 4109 | Y9: 12343 | Z9: 12588 | AA9: 3979 | AB9: 4056 | AC9: 9557 | AD9: 9745 | AE9: 8095 | AF9: 8254 | AG9: 7786 | AH9: 7938 | AI9: 7601 | AJ9: 7749 | AK9: 6597 | AL9: 6726 | AM9: 6078 | AN9: 6197 | AO9: 5385 | AP9: 5491 | AQ9: 4581 | AR9: 4671 | AS9: 3842 | AT9: 3918 | AU9: 3115 | AV9: 3176 | AW9: 2652 | AX9: 2704 | AY9: 1863 | AZ9: 1899 | BA9: 1944 | BB9: 1983 | BC9: 3925 | BD9: 294 | BE9: 108048 | BF9: 10101 | BG9: 9921 | BH9: 46239 | BI9: 4861
A10: 150801 | C10: 3 | D10: 150802 | E10: DISTRITO HUACHO | F10: 58397 | H10: 28914 | I10: 29483 | K10: 466 | L10: 475 | M10: 439 | N10: 447 | O10: 420 | P10: 429 | Q10: 410 | R10: 419 | S10: 407 | T10: 415 | U10: 2163 | V10: 2207 | W10: 977 | X10: 997 | Y10: 3042 | Z10: 3103 | AA10: 1003 | AB10: 1022 | AC10: 2486 | AD10: 2535 | AE10: 2114 | AF10: 2155 | AG10: 2045 | AH10: 2086 | AI10: 2071 | AJ10: 2111 | AK10: 1868 | AL10: 1904 | AM10: 1772 | AN10: 1806 | AO10: 1683 | AP10: 1716 | AQ10: 1407 | AR10: 1435 | AS10: 1156 | AT10: 1178 | AU10: 952 | AV10: 971 | AW10: 813 | AX10: 828 | AY10: 595 | AZ10: 606 | BA10: 625 | BB10: 638 | BC10: 953 | BD10: 72 | BE10: 29962 | BF10: 2544 | BG10: 2491 | BH10: 12927 | BI10: 1180
B11: 00 | C11: 4 | D11: 7639 | E11: HOSPITAL G. HUACHO | F11: 44966 | H11: 22263 | I11: 22703 | K11: 359 | L11: 366 | M11: 338 | N11: 344 | O11: 324 | P11: 330 | Q11: 316 | R11: 322 | S11: 313 | T11: 320 | U11: 1665 | V11: 1699 | W11: 752 | X11: 768 | Y11: 2343 | Z11: 2390 | AA11: 772 | AB11: 787 | AC11: 1914 | AD11: 1952 | AE11: 1628 | AF11: 1659 | AG11: 1575 | AH11: 1606 | AI11: 1594 | AJ11: 1626 | AK11: 1438 | AL11: 1466 | AM11: 1364 | AN11: 1391 | AO11: 1296 | AP11: 1321 | AQ11: 1083 | AR11: 1105 | AS11: 890 | AT11: 907 | AU11: 733 | AV11: 748 | AW11: 626 | AX11: 638 | AY11: 458 | AZ11: 467 | BA11: 482 | BB11: 491 | BC11: 734 | BD11: 55 | BE11: 23071 | BF11: 1959 | BG11: 1918 | BH11: 9954 | BI11: 909
B12: 02 | C12: 5 | D12: 5679 | E12: C. S. MANZANARES | F12: 13431 | H12: 6652 | I12: 6779 | K12: 107 | L12: 109 | M12: 101 | N12: 103 | O12: 97 | P12: 98 | Q12: 95 | R12: 96 | S12: 94 | T12: 95 | U12: 498 | V12: 508 | W12: 225 | X12: 229 | Y12: 698 | Z12: 714 | AA12: 231 | AB12: 235 | AC12: 572 | AD12: 583 | AE12: 486 | AF12: 496 | AG12: 470 | AH12: 480 | AI12: 476 | AJ12: 486 | AK12: 430 | AL12: 438 | AM12: 408 | AN12: 415 | AO12: 387 | AP12: 395 | AQ12: 324 | AR12: 330 | AS12: 266 | AT12: 271 | AU12: 219 | AV12: 223 | AW12: 187 | AX12: 190 | AY12: 137 | AZ12: 139 | BA12: 144 | BB12: 146 | BC12: 219 | BD12: 17 | BE12: 6891 | BF12: 585 | BG12: 573 | BH12: 2973 | BI12: 271
A13: 150802 | C13: 6 | D13: 150802 | E13: DISTRITO AMBAR | F13: 2761 | H13: 1367 | I13: 1394 | K13: 20 | L13: 20 | M13: 24 | N13: 25 | O13: 28 | P13: 28 | Q13: 31 | R13: 31 | S13: 33 | T13: 33 | U13: 173 | V13: 178 | W13: 66 | X13: 67 | Y13: 152 | Z13: 154 | AA13: 40 | AB13: 41 | AC13: 108 | AD13: 111 | AE13: 83 | AF13: 84 | AG13: 85 | AH13: 87 | AI13: 81 | AJ13: 82 | AK13: 66 | AL13: 68 | AM13: 76 | AN13: 78 | AO13: 67 | AP13: 68 | AQ13: 54 | AR13: 55 | AS13: 51 | AT13: 52 | AU13: 46 | AV13: 47 | AW13: 34 | AX13: 35 | AY13: 23 | AZ13: 23 | BA13: 26 | BB13: 27 | BC13: 44 | BD13: 3 | BE13: 1289 | BF13: 138 | BG13: 100 | BH13: 479 | BI13: 54
B14: 01 | C14: 7 | D14: 5680 | E14: C.S. AMBAR | F14: 1651 | H14: 816 | I14: 835 | K14: 12 | L14: 12 | M14: 14 | N14: 15 | O14: 16 | P14: 17 | Q14: 18 | R14: 19 | S14: 19 | T14: 20 | U14: 103 | V14: 105 | W14: 39 | X14: 41 | Y14: 90 | Z14: 93 | AA14: 24 | AB14: 25 | AC14: 65 | AD14: 66 | AE14: 50 | AF14: 51 | AG14: 51 | AH14: 52 | AI14: 48 | AJ14: 49 | AK14: 40 | AL14: 40 | AM14: 46 | AN14: 46 | AO14: 40 | AP14: 41 | AQ14: 32 | AR14: 33 | AS14: 31 | AT14: 31 | AU14: 28 | AV14: 28 | AW14: 20 | AX14: 21 | AY14: 14 | AZ14: 14 | BA14: 16 | BB14: 16 | BC14: 26 | BD14: 2 | BE14: 771 | BF14: 83 | BG14: 60 | BH14: 286 | BI14: 32
B15: 01 | C15: 8 | D15: 5681 | E15: P.S. AYNACA | F15: 1110 | H15: 548 | I15: 562 | K15: 8 | L15: 8 | M15: 10 | N15: 10 | O15: 11 | P15: 12 | Q15: 12 | R15: 13 | S15: 13 | T15: 14 | U15: 70 | V15: 73 | W15: 26 | X15: 27 | Y15: 60 | Z15: 63 | AA15: 16 | AB15: 16 | AC15: 44 | AD15: 44 | AE15: 33 | AF15: 33 | AG15: 34 | AH15: 35 | AI15: 33 | AJ15: 33 | AK15: 27 | AL15: 27 | AM15: 31 | AN15: 31 | AO15: 27 | AP15: 27 | AQ15: 22 | AR15: 22 | AS15: 20 | AT15: 21 | AU15: 18 | AV15: 19 | AW15: 14 | AX15: 14 | AY15: 9 | AZ15: 9 | BA15: 10 | BB15: 11 | BC15: 18 | BD15: 1 | BE15: 518 | BF15: 55 | BG15: 40 | BH15: 193 | BI15: 22
A16: 150803 | C16: 9 | D16: 150803 | E16: DISTRITO CARQUIN | F16: 6736 | H16: 3332 | I16: 3404 | K16: 62 | L16: 64 | M16: 60 | N16: 61 | O16: 58 | P16: 59 | Q16: 56 | R16: 58 | S16: 55 | T16: 57 | U16: 270 | V16: 277 | W16: 109 | X16: 113 | Y16: 332 | Z16: 341 | AA16: 117 | AB16: 120 | AC16: 321 | AD16: 328 | AE16: 294 | AF16: 300 | AG16: 291 | AH16: 296 | AI16: 244 | AJ16: 248 | AK16: 231 | AL16: 235 | AM16: 178 | AN16: 182 | AO16: 168 | AP16: 172 | AQ16: 134 | AR16: 136 | AS16: 105 | AT16: 107 | AU16: 96 | AV16: 98 | AW16: 67 | AX16: 68 | AY16: 40 | AZ16: 40 | BA16: 44 | BB16: 44 | BC16: 131 | BD16: 10 | BE16: 2912 | BF16: 252 | BG16: 275 | BH16: 1241 | BI16: 162
B17: 02 | C17: 10 | D17: 5664 | E17: P.S. CARQUIN | F17: 6736 | H17: 3332 | I17: 3404 | K17: 62 | L17: 64 | M17: 60 | N17: 61 | O17: 58 | P17: 59 | Q17: 56 | R17: 58 | S17: 55 | T17: 57 | U17: 270 | V17: 277 | W17: 109 | X17: 113 | Y17: 332 | Z17: 341 | AA17: 117 | AB17: 120 | AC17: 321 | AD17: 328 | AE17: 294 | AF17: 300 | AG17: 291 | AH17: 296 | AI17: 244 | AJ17: 248 | AK17: 231 | AL17: 235 | AM17: 178 | AN17: 182 | AO17: 168 | AP17: 172 | AQ17: 134 | AR17: 136 | AS17: 105 | AT17: 107 | AU17: 96 | AV17: 98 | AW17: 67 | AX17: 68 | AY17: 40 | AZ17: 40 | BA17: 44 | BB17: 44 | BC17: 131 | BD17: 10 | BE17: 2912 | BF17: 252 | BG17: 275 | BH17: 1241 | BI17: 162
A18: 150804 | C18: 11 | D18: 150804 | E18: DISTRITO CHECRAS | F18: 1748 | H18: 863 | I18: 885 | K18: 15 | L18: 15 | M18: 13 | N18: 14 | O18: 12 | P18: 13 | Q18: 12 | R18: 12 | S18: 12 | T18: 12 | U18: 67 | V18: 69 | W18: 33 | X18: 33 | Y18: 82 | Z18: 87 | AA18: 17 | AB18: 18 | AC18: 35 | AD18: 35 | AE18: 43 | AF18: 44 | AG18: 40 | AH18: 41 | AI18: 59 | AJ18: 61 | AK18: 53 | AL18: 55 | AM18: 51 | AN18: 52 | AO18: 66 | AP18: 68 | AQ18: 49 | AR18: 49 | AS18: 51 | AT18: 51 | AU18: 41 | AV18: 42 | AW18: 55 | AX18: 57 | AY18: 30 | AZ18: 30 | BA18: 27 | BB18: 27 | BC18: 33 | BD18: 2 | BE18: 866 | BF18: 75 | BG18: 41 | BH18: 286 | BI18: 41
B19: 05 | C19: 12 | D19: 5663 | E19: P.S. PUÑUN | F19: 1748 | H19: 863 | I19: 885 | K19: 15 | L19: 15 | M19: 13 | N19: 14 | O19: 12 | P19: 13 | Q19: 12 | R19: 12 | S19: 12 | T19: 12 | U19: 67 | V19: 69 | W19: 33 | X19: 33 | Y19: 82 | Z19: 87 | AA19: 17 | AB19: 18 | AC19: 35 | AD19: 35 | AE19: 43 | AF19: 44 | AG19: 40 | AH19: 41 | AI19: 59 | AJ19: 61 | AK19: 53 | AL19: 55 | AM19: 51 | AN19: 52 | AO19: 66 | AP19: 68 | AQ19: 49 | AR19: 49 | AS19: 51 | AT19: 51 | AU19: 41 | AV19: 42 | AW19: 55 | AX19: 57 | AY19: 30 | AZ19: 30 | BA19: 27 | BB19: 27 | BC19: 33 | BD19: 2 | BE19: 866 | BF19: 75 | BG19: 41 | BH19: 286 | BI19: 41
A20: 150805 | C20: 13 | D20: 150805 | E20: DISTRITO HUALMAY | F20: 28486 | H20: 14105 | I20: 14381 | K20: 250 | L20: 255 | M20: 235 | N20: 240 | O20: 225 | P20: 230 | Q20: 220 | R20: 225 | S20: 220 | T20: 224 | U20: 1176 | V20: 1196 | W20: 532 | X20: 543 | Y20: 1610 | Z20: 1642 | AA20: 511 | AB20: 520 | AC20: 1252 | AD20: 1277 | AE20: 1063 | AF20: 1084 | AG20: 1028 | AH20: 1049 | AI20: 1024 | AJ20: 1045 | AK20: 909 | AL20: 927 | AM20: 766 | AN20: 780 | AO20: 703 | AP20: 717 | AQ20: 626 | AR20: 638 | AS20: 504 | AT20: 514 | AU20: 426 | AV20: 435 | AW20: 318 | AX20: 324 | AY20: 245 | AZ20: 249 | BA20: 262 | BB20: 267 | BC20: 513 | BD20: 39 | BE20: 14653 | BF20: 1361 | BG20: 1324 | BH20: 6296 | BI20: 636
B21: 02 | C21: 14 | D21: 5665 | E21: C.S. HUALMAY | F21: 14243 | H21: 7052 | I21: 7191 | K21: 125 | L21: 127 | M21: 118 | N21: 120 | O21: 113 | P21: 115 | Q21: 110 | R21: 112 | S21: 110 | T21: 112 | U21: 587 | V21: 599 | W21: 266 | X21: 272 | Y21: 806 | Z21: 821 | AA21: 255 | AB21: 260 | AC21: 626 | AD21: 639 | AE21: 531 | AF21: 542 | AG21: 513 | AH21: 524 | AI21: 512 | AJ21: 522 | AK21: 455 | AL21: 463 | AM21: 383 | AN21: 390 | AO21: 352 | AP21: 358 | AQ21: 313 | AR21: 319 | AS21: 252 | AT21: 257 | AU21: 213 | AV21: 218 | AW21: 159 | AX21: 162 | AY21: 122 | AZ21: 125 | BA21: 131 | BB21: 134 | BC21: 256 | BD21: 19 | BE21: 7326 | BF21: 681 | BG21: 662 | BH21: 3148 | BI21: 318
B22: 02 | C22: 15 | D22: 5666 | E22: P.S. DGO. MANDAMIENTO | F22: 9970 | H22: 4938 | I22: 5032 | K22: 88 | L22: 89 | M22: 82 | N22: 84 | O22: 79 | P22: 80 | Q22: 77 | R22: 79 | S22: 77 | T22: 78 | U22: 412 | V22: 418 | W22: 186 | X22: 190 | Y22: 564 | Z22: 574 | AA22: 179 | AB22: 182 | AC22: 438 | AD22: 447 | AE22: 372 | AF22: 379 | AG22: 360 | AH22: 368 | AI22: 359 | AJ22: 366 | AK22: 318 | AL22: 325 | AM22: 268 | AN22: 273 | AO22: 246 | AP22: 251 | AQ22: 219 | AR22: 223 | AS22: 176 | AT22: 180 | AU22: 149 | AV22: 152 | AW22: 111 | AX22: 114 | AY22: 86 | AZ22: 87 | BA22: 92 | BB22: 93 | BC22: 180 | BD22: 14 | BE22: 5129 | BF22: 476 | BG22: 463 | BH22: 2204 | BI22: 223
B23: 02 | C23: 16 | D23: 5667 | E23: P.S. CAMPO ALEGRE | F23: 4273 | H23: 2117 | I23: 2156 | K23: 38 | L23: 38 | M23: 35 | N23: 36 | O23: 34 | P23: 34 | Q23: 33 | R23: 34 | S23: 33 | T23: 34 | U23: 176 | V23: 180 | W23: 80 | X23: 81 | Y23: 242 | Z23: 245 | AA23: 77 | AB23: 78 | AC23: 188 | AD23: 191 | AE23: 160 | AF23: 163 | AG23: 154 | AH23: 158 | AI23: 153 | AJ23: 157 | AK23: 136 | AL23: 139 | AM23: 115 | AN23: 117 | AO23: 105 | AP23: 108 | AQ23: 94 | AR23: 96 | AS23: 76 | AT23: 77 | AU23: 64 | AV23: 65 | AW23: 48 | AX23: 48 | AY23: 37 | AZ23: 37 | BA23: 39 | BB23: 40 | BC23: 77 | BD23: 6 | BE23: 2198 | BF23: 204 | BG23: 199 | BH23: 944 | BI23: 95
A24: 150806 | C24: 17 | D24: 150806 | E24: DISTRITO HUAURA | F24: 34967 | H24: 17311 | I24: 17656 | K24: 315 | L24: 322 | M24: 299 | N24: 305 | O24: 289 | P24: 295 | Q24: 284 | R24: 290 | S24: 284 | T24: 290 | U24: 1530 | V24: 1559 | W24: 696 | X24: 709 | Y24: 2261 | Z24: 2307 | AA24: 737 | AB24: 753 | AC24: 1627 | AD24: 1659 | AE24: 1350 | AF24: 1377 | AG24: 1280 | AH24: 1306 | AI24: 1199 | AJ24: 1223 | AK24: 1041 | AL24: 1062 | AM24: 948 | AN24: 967 | AO24: 788 | AP24: 804 | AQ24: 628 | AR24: 640 | AS24: 508 | AT24: 517 | AU24: 418 | AV24: 426 | AW24: 375 | AX24: 382 | AY24: 231 | AZ24: 235 | BA24: 223 | BB24: 228 | BC24: 647 | BD24: 49 | BE24: 17359 | BF24: 1744 | BG24: 1827 | BH24: 7655 | BI24: 802
B25: 01 | C25: 18 | D25: 5682 | E25: C.S. HUAURA | F25: 16084 | H25: 7965 | I25: 8119 | K25: 145 | L25: 148 | M25: 138 | N25: 140 | O25: 133 | P25: 136 | Q25: 131 | R25: 133 | S25: 131 | T25: 133 | U25: 705 | V25: 716 | W25: 319 | X25: 326 | Y25: 1042 | Z25: 1061 | AA25: 339 | AB25: 346 | AC25: 748 | AD25: 763 | AE25: 621 | AF25: 633 | AG25: 589 | AH25: 601 | AI25: 552 | AJ25: 563 | AK25: 479 | AL25: 489 | AM25: 436 | AN25: 445 | AO25: 362 | AP25: 370 | AQ25: 289 | AR25: 294 | AS25: 233 | AT25: 238 | AU25: 192 | AV25: 195 | AW25: 172 | AX25: 176 | AY25: 106 | AZ25: 108 | BA25: 103 | BB25: 105 | BC25: 298 | BD25: 22 | BE25: 7985 | BF25: 803 | BG25: 840 | BH25: 3522 | BI25: 370
B26: 01 | C26: 19 | D26: 5686 | E26: C.MAT.INF.EL SOCORRO | F26: 12658 | H26: 6268 | I26: 6390 | K26: 114 | L26: 117 | M26: 108 | N26: 111 | O26: 104 | P26: 107 | Q26: 103 | R26: 105 | S26: 103 | T26: 105 | U26: 553 | V26: 565 | W26: 252 | X26: 257 | Y26: 819 | Z26: 834 | AA26: 268 | AB26: 272 | AC26: 589 | AD26: 601 | AE26: 489 | AF26: 498 | AG26: 463 | AH26: 473 | AI26: 434 | AJ26: 442 | AK26: 377 | AL26: 384 | AM26: 343 | AN26: 350 | AO26: 285 | AP26: 291 | AQ26: 227 | AR26: 232 | AS26: 184 | AT26: 187 | AU26: 152 | AV26: 154 | AW26: 136 | AX26: 138 | AY26: 84 | AZ26: 85 | BA26: 81 | BB26: 82 | BC26: 234 | BD26: 18 | BE26: 6284 | BF26: 631 | BG26: 661 | BH26: 2771 | BI26: 290
B27: 01 | C27: 20 | D27: 5683 | E27: P.S. HUMAYA | F27: 3637 | H27: 1804 | I27: 1833 | K27: 33 | L27: 33 | M27: 31 | N27: 32 | O27: 30 | P27: 31 | Q27: 30 | R27: 30 | S27: 30 | T27: 30 | U27: 160 | V27: 161 | W27: 73 | X27: 74 | Y27: 236 | Z27: 238 | AA27: 77 | AB27: 78 | AC27: 169 | AD27: 173 | AE27: 140 | AF27: 143 | AG27: 133 | AH27: 135 | AI27: 125 | AJ27: 127 | AK27: 108 | AL27: 111 | AM27: 99 | AN27: 100 | AO27: 82 | AP27: 84 | AQ27: 65 | AR27: 67 | AS27: 53 | AT27: 54 | AU27: 44 | AV27: 44 | AW27: 39 | AX27: 40 | AY27: 24 | AZ27: 24 | BA27: 23 | BB27: 24 | BC27: 67 | BD27: 5 | BE27: 1805 | BF27: 181 | BG27: 190 | BH27: 796 | BI27: 83
B28: 01 | C28: 21 | D28: 5684 | E28: P.S. VILCAHUAURA | F28: 2098 | H28: 1040 | I28: 1058 | K28: 19 | L28: 19 | M28: 18 | N28: 18 | O28: 17 | P28: 18 | Q28: 17 | R28: 17 | S28: 17 | T28: 17 | U28: 92 | V28: 94 | W28: 41 | X28: 43 | Y28: 136 | Z28: 137 | AA28: 44 | AB28: 45 | AC28: 98 | AD28: 99 | AE28: 82 | AF28: 83 | AG28: 77 | AH28: 79 | AI28: 72 | AJ28: 73 | AK28: 62 | AL28: 64 | AM28: 57 | AN28: 58 | AO28: 48 | AP28: 48 | AQ28: 38 | AR28: 38 | AS28: 31 | AT28: 31 | AU28: 25 | AV28: 26 | AW28: 22 | AX28: 23 | AY28: 14 | AZ28: 14 | BA28: 13 | BB28: 14 | BC28: 39 | BD28: 3 | BE28: 1042 | BF28: 105 | BG28: 110 | BH28: 459 | BI28: 48
B29: 01 | C29: 22 | D29: 5685 | E29: P.S. PEÑICO | F29: 490 | H29: 238 | I29: 252 | K29: 4 | L29: 5 | M29: 4 | N29: 4 | O29: 4 | P29: 4 | Q29: 4 | R29: 4 | S29: 4 | T29: 4 | U29: 20 | V29: 23 | W29: 10 | X29: 10 | Y29: 30 | Z29: 35 | AA29: 10 | AB29: 11 | AC29: 23 | AD29: 23 | AE29: 19 | AF29: 19 | AG29: 18 | AH29: 18 | AI29: 17 | AJ29: 17 | AK29: 14 | AL29: 15 | AM29: 13 | AN29: 14 | AO29: 11 | AP29: 11 | AQ29: 9 | AR29: 9 | AS29: 7 | AT29: 7 | AU29: 6 | AV29: 6 | AW29: 5 | AX29: 6 | AY29: 3 | AZ29: 4 | BA29: 3 | BB29: 3 | BC29: 9 | BD29: 1 | BE29: 243 | BF29: 24 | BG29: 26 | BH29: 107 | BI29: 11
A30: 150807 | C30: 23 | D30: 150807 | E30: DISTRITO LEONCIO PRADO | F30: 1994 | H30: 985 | I30: 1009 | K30: 15 | L30: 15 | M30: 18 | N30: 19 | O30: 21 | P30: 22 | Q30: 23 | R30: 23 | S30: 24 | T30: 24 | U30: 111 | V30: 114 | W30: 34 | X30: 36 | Y30: 90 | Z30: 91 | AA30: 30 | AB30: 32 | AC30: 84 | AD30: 86 | AE30: 73 | AF30: 74 | AG30: 61 | AH30: 63 | AI30: 62 | AJ30: 63 | AK30: 52 | AL30: 53 | AM30: 58 | AN30: 60 | AO30: 55 | AP30: 57 | AQ30: 36 | AR30: 36 | AS30: 36 | AT30: 37 | AU30: 30 | AV30: 30 | AW30: 29 | AX30: 29 | AY30: 20 | AZ30: 21 | BA30: 23 | BB30: 24 | BC30: 33 | BD30: 2 | BE30: 906 | BF30: 82 | BG30: 64 | BH30: 351 | BI30: 41
B31: 03 | C31: 24 | D31: 5778 | E31: P.S. AUQUIMARCA | F31: 100 | H31: 48 | I31: 52 | K31: 1 | L31: 1 | M31: 1 | N31: 1 | O31: 1 | P31: 1 | Q31: 1 | R31: 1 | S31: 1 | T31: 1 | U31: 5 | V31: 5 | W31: 2 | X31: 2 | Y31: 6 | Z31: 6 | AA31: 2 | AB31: 2 | AC31: 4 | AD31: 4 | AE31: 3 | AF31: 3 | AG31: 2 | AH31: 3 | AI31: 3 | AJ31: 3 | AK31: 2 | AL31: 3 | AM31: 3 | AN31: 3 | AO31: 3 | AP31: 3 | AQ31: 2 | AR31: 2 | AS31: 2 | AT31: 2 | AU31: 1 | AV31: 2 | AW31: 1 | AX31: 2 | AY31: 1 | AZ31: 1 | BA31: 1 | BB31: 1 | BC31: 2 | BD31: 0 | BE31: 45 | BF31: 4 | BG31: 3 | BH31: 18 | BI31: 2
B32: 03 | C32: 25 | D32: 5779 | E32: P.S. PARAN | F32: 997 | H32: 491 | I32: 506 | K32: 7 | L32: 8 | M32: 9 | N32: 9 | O32: 11 | P32: 11 | Q32: 11 | R32: 12 | S32: 12 | T32: 12 | U32: 56 | V32: 58 | W32: 17 | X32: 17 | Y32: 43 | Z32: 48 | AA32: 16 | AB32: 16 | AC32: 42 | AD32: 42 | AE32: 37 | AF32: 37 | AG32: 31 | AH32: 31 | AI32: 31 | AJ32: 31 | AK32: 26 | AL32: 27 | AM32: 29 | AN32: 30 | AO32: 27 | AP32: 28 | AQ32: 17 | AR32: 18 | AS32: 18 | AT32: 18 | AU32: 15 | AV32: 15 | AW32: 14 | AX32: 15 | AY32: 10 | AZ32: 11 | BA32: 12 | BB32: 12 | BC32: 16 | BD32: 1 | BE32: 454 | BF32: 41 | BG32: 32 | BH32: 175 | BI32: 21
B33: 03 | C33: 26 | D33: 6725 | E33: P.S. SANTA CRUZ | F33: 438 | H33: 213 | I33: 225 | K33: 3 | L33: 3 | M33: 4 | N33: 4 | O33: 4 | P33: 5 | Q33: 5 | R33: 5 | S33: 5 | T33: 6 | U33: 23 | V33: 26 | W33: 7 | X33: 8 | Y33: 18 | Z33: 18 | AA33: 6 | AB33: 6 | AC33: 19 | AD33: 20 | AE33: 17 | AF33: 17 | AG33: 15 | AH33: 15 | AI33: 14 | AJ33: 14 | AK33: 11 | AL33: 12 | AM33: 13 | AN33: 13 | AO33: 12 | AP33: 13 | AQ33: 8 | AR33: 8 | AS33: 8 | AT33: 8 | AU33: 6 | AV33: 7 | AW33: 6 | AX33: 7 | AY33: 4 | AZ33: 5 | BA33: 5 | BB33: 5 | BC33: 7 | BD33: 0 | BE33: 199 | BF33: 18 | BG33: 14 | BH33: 77 | BI33: 9
B34: 03 | C34: 27 | D34: 7757 | E34: P.S. HUANANGUI | F34: 459 | H34: 216 | I34: 243 | K34: 3 | L34: 4 | M34: 4 | N34: 5 | O34: 5 | P34: 5 | Q34: 5 | R34: 6 | S34: 5 | T34: 6 | U34: 24 | V34: 28 | W34: 8 | X34: 9 | Y34: 18 | Z34: 24 | AA34: 6 | AB34: 8 | AC34: 19 | AD34: 20 | AE34: 16 | AF34: 17 | AG34: 13 | AH34: 14 | AI34: 14 | AJ34: 15 | AK34: 12 | AL34: 12 | AM34: 13 | AN34: 14 | AO34: 13 | AP34: 13 | AQ34: 8 | AR34: 9 | AS34: 8 | AT34: 9 | AU34: 7 | AV34: 7 | AW34: 6 | AX34: 7 | AY34: 4 | AZ34: 5 | BA34: 5 | BB34: 6 | BC34: 8 | BD34: 1 | BE34: 208 | BF34: 19 | BG34: 15 | BH34: 81 | BI34: 9
A35: 150808 | C35: 28 | D35: 150808 | E35: DISTRITO PACCHO | F35: 2188 | H35: 1080 | I35: 1108 | K35: 15 | L35: 16 | M35: 15 | N35: 16 | O35: 16 | P35: 16 | Q35: 16 | R35: 16 | S35: 17 | T35: 17 | U35: 90 | V35: 93 | W35: 39 | X35: 40 | Y35: 91 | Z35: 96 | AA35: 23 | AB35: 23 | AC35: 64 | AD35: 65 | AE35: 58 | AF35: 59 | AG35: 66 | AH35: 67 | AI35: 69 | AJ35: 71 | AK35: 69 | AL35: 71 | AM35: 61 | AN35: 62 | AO35: 58 | AP35: 60 | AQ35: 57 | AR35: 58 | AS35: 69 | AT35: 71 | AU35: 63 | AV35: 65 | AW35: 54 | AX35: 55 | AY35: 37 | AZ35: 37 | BA35: 33 | BB35: 34 | BC35: 34 | BD35: 2 | BE35: 1051 | BF35: 97 | BG35: 45 | BH35: 361 | BI35: 42
B36: 05 | C36: 29 | D36: 5650 | E36: C.S. PACCHO | F36: 875 | H36: 428 | I36: 447 | K36: 6 | L36: 6 | M36: 6 | N36: 6 | O36: 6 | P36: 7 | Q36: 6 | R36: 7 | S36: 6 | T36: 7 | U36: 35 | V36: 38 | W36: 15 | X36: 16 | Y36: 36 | Z36: 39 | AA36: 8 | AB36: 10 | AC36: 26 | AD36: 27 | AE36: 23 | AF36: 24 | AG36: 27 | AH36: 27 | AI36: 28 | AJ36: 29 | AK36: 28 | AL36: 28 | AM36: 24 | AN36: 25 | AO36: 23 | AP36: 23 | AQ36: 23 | AR36: 23 | AS36: 28 | AT36: 28 | AU36: 25 | AV36: 26 | AW36: 22 | AX36: 22 | AY36: 14 | AZ36: 15 | BA36: 13 | BB36: 14 | BC36: 13 | BD36: 1 | BE36: 420 | BF36: 39 | BG36: 18 | BH36: 145 | BI36: 17
B37: 05 | C37: 30 | D37: 5651 | E37: P.S. LACSANGA | F37: 548 | H37: 266 | I37: 282 | K37: 4 | L37: 4 | M37: 4 | N37: 4 | O37: 4 | P37: 4 | Q37: 4 | R37: 4 | S37: 4 | T37: 5 | U37: 21 | V37: 25 | W37: 10 | X37: 10 | Y37: 22 | Z37: 24 | AA37: 6 | AB37: 6 | AC37: 16 | AD37: 16 | AE37: 14 | AF37: 15 | AG37: 16 | AH37: 17 | AI37: 17 | AJ37: 17 | AK37: 17 | AL37: 18 | AM37: 15 | AN37: 16 | AO37: 15 | AP37: 15 | AQ37: 14 | AR37: 15 | AS37: 17 | AT37: 18 | AU37: 16 | AV37: 16 | AW37: 13 | AX37: 14 | AY37: 9 | AZ37: 10 | BA37: 8 | BB37: 9 | BC37: 9 | BD37: 1 | BE37: 263 | BF37: 24 | BG37: 11 | BH37: 90 | BI37: 11
B38: 05 | C38: 31 | D38: 5653 | E38: P.S. AYARANGA | F38: 328 | H38: 156 | I38: 172 | K38: 2 | L38: 3 | M38: 2 | N38: 3 | O38: 2 | P38: 3 | Q38: 2 | R38: 3 | S38: 2 | T38: 3 | U38: 13 | V38: 15 | W38: 6 | X38: 6 | Y38: 13 | Z38: 15 | AA38: 3 | AB38: 4 | AC38: 9 | AD38: 9 | AE38: 9 | AF38: 9 | AG38: 10 | AH38: 10 | AI38: 10 | AJ38: 11 | AK38: 10 | AL38: 11 | AM38: 9 | AN38: 9 | AO38: 9 | AP38: 9 | AQ38: 8 | AR38: 9 | AS38: 10 | AT38: 11 | AU38: 9 | AV38: 10 | AW38: 8 | AX38: 8 | AY38: 5 | AZ38: 6 | BA38: 5 | BB38: 5 | BC38: 5 | BD38: 0 | BE38: 158 | BF38: 15 | BG38: 7 | BH38: 54 | BI38: 6
B39: 05 | C39: 32 | D39: 5652 | E39: P.S. MUZGA | F39: 437 | H39: 211 | I39: 226 | K39: 3 | L39: 3 | M39: 3 | N39: 3 | O39: 3 | P39: 3 | Q39: 3 | R39: 3 | S39: 3 | T39: 4 | U39: 16 | V39: 20 | W39: 8 | X39: 8 | Y39: 17 | Z39: 21 | AA39: 4 | AB39: 5 | AC39: 13 | AD39: 13 | AE39: 11 | AF39: 12 | AG39: 13 | AH39: 13 | AI39: 14 | AJ39: 14 | AK39: 14 | AL39: 14 | AM39: 12 | AN39: 13 | AO39: 12 | AP39: 12 | AQ39: 11 | AR39: 12 | AS39: 14 | AT39: 14 | AU39: 13 | AV39: 13 | AW39: 11 | AX39: 11 | AY39: 7 | AZ39: 8 | BA39: 6 | BB39: 7 | BC39: 7 | BD39: 0 | BE39: 210 | BF39: 19 | BG39: 9 | BH39: 72 | BI39: 8
A40: 150809 | C40: 33 | D40: 150809 | E40: DISTRITO SANTA LEONOR | F40: 1471 | H40: 725 | I40: 746 | K40: 11 | L40: 12 | M40: 10 | N40: 11 | O40: 10 | P40: 11 | Q40: 10 | R40: 11 | S40: 11 | T40: 12 | U40: 70 | V40: 70 | W40: 35 | X40: 36 | Y40: 84 | Z40: 89 | AA40: 19 | AB40: 20 | AC40: 45 | AD40: 46 | AE40: 34 | AF40: 34 | AG40: 36 | AH40: 37 | AI40: 45 | AJ40: 46 | AK40: 43 | AL40: 44 | AM40: 45 | AN40: 46 | AO40: 50 | AP40: 50 | AQ40: 34 | AR40: 35 | AS40: 38 | AT40: 39 | AU40: 28 | AV40: 29 | AW40: 27 | AX40: 28 | AY40: 23 | AZ40: 23 | BA40: 17 | BB40: 17 | BC40: 26 | BD40: 2 | BE40: 690 | BF40: 74 | BG40: 56 | BH40: 241 | BI40: 32
B41: 05 | C41: 34 | D41: 5645 | E41: C.S. CHIUCHIN | F41: 956 | H41: 469 | I41: 487 | K41: 7 | L41: 8 | M41: 7 | N41: 7 | O41: 7 | P41: 7 | Q41: 7 | R41: 7 | S41: 7 | T41: 8 | U41: 44 | V41: 47 | W41: 23 | X41: 23 | Y41: 55 | Z41: 57 | AA41: 12 | AB41: 13 | AC41: 29 | AD41: 30 | AE41: 22 | AF41: 23 | AG41: 23 | AH41: 24 | AI41: 29 | AJ41: 30 | AK41: 28 | AL41: 29 | AM41: 29 | AN41: 30 | AO41: 32 | AP41: 33 | AQ41: 22 | AR41: 23 | AS41: 25 | AT41: 25 | AU41: 18 | AV41: 19 | AW41: 17 | AX41: 18 | AY41: 15 | AZ41: 15 | BA41: 11 | BB41: 11 | BC41: 17 | BD41: 1 | BE41: 448 | BF41: 48 | BG41: 36 | BH41: 157 | BI41: 20
B42: 05 | C42: 35 | D42: 5646 | E42: P.C. JUCUL | F42: 74 | H42: 27 | I42: 47 | K42: 0 | L42: 1 | M42: 0 | N42: 1 | O42: 0 | P42: 1 | Q42: 0 | R42: 1 | S42: 0 | T42: 1 | U42: 2 | V42: 5 | W42: 2 | X42: 2 | Y42: 3 | Z42: 6 | AA42: 0 | AB42: 2 | AC42: 2 | AD42: 2 | AE42: 1 | AF42: 2 | AG42: 2 | AH42: 2 | AI42: 2 | AJ42: 3 | AK42: 2 | AL42: 2 | AM42: 2 | AN42: 3 | AO42: 2 | AP42: 3 | AQ42: 1 | AR42: 2 | AS42: 2 | AT42: 2 | AU42: 1 | AV42: 2 | AW42: 1 | AX42: 2 | AY42: 1 | AZ42: 1 | BA42: 1 | BB42: 1 | BC42: 1 | BD42: 0 | BE42: 35 | BF42: 4 | BG42: 3 | BH42: 12 | BI42: 2
B43: 05 | C43: 36 | D43: 5647 | E43: P.S. PARQUIN | F43: 441 | H43: 213 | I43: 228 | K43: 3 | L43: 4 | M43: 3 | N43: 3 | O43: 3 | P43: 3 | Q43: 3 | R43: 3 | S43: 3 | T43: 4 | U43: 20 | V43: 22 | W43: 10 | X43: 11 | Y43: 24 | Z43: 28 | AA43: 6 | AB43: 6 | AC43: 14 | AD43: 14 | AE43: 10 | AF43: 10 | AG43: 11 | AH43: 11 | AI43: 13 | AJ43: 14 | AK43: 13 | AL43: 13 | AM43: 13 | AN43: 14 | AO43: 15 | AP43: 15 | AQ43: 10 | AR43: 11 | AS43: 11 | AT43: 12 | AU43: 8 | AV43: 9 | AW43: 8 | AX43: 9 | AY43: 7 | AZ43: 7 | BA43: 5 | BB43: 5 | BC43: 8 | BD43: 1 | BE43: 207 | BF43: 22 | BG43: 17 | BH43: 72 | BI43: 10
A44: 150810 | C44: 37 | D44: 150810 | E44: DISTRITO SANTA MARIA | F44: 32831 | H44: 16258 | I44: 16573 | K44: 286 | L44: 291 | M44: 274 | N44: 280 | O44: 268 | P44: 273 | Q44: 265 | R44: 271 | S44: 266 | T44: 272 | U44: 1417 | V44: 1445 | W44: 627 | X44: 640 | Y44: 1889 | Z44: 1924 | AA44: 593 | AB44: 603 | AC44: 1395 | AD44: 1422 | AE44: 1195 | AF44: 1218 | AG44: 1194 | AH44: 1217 | AI44: 1197 | AJ44: 1221 | AK44: 970 | AL44: 989 | AM44: 871 | AN44: 888 | AO44: 747 | AP44: 762 | AQ44: 705 | AR44: 718 | AS44: 608 | AT44: 619 | AU44: 455 | AV44: 464 | AW44: 403 | AX44: 411 | AY44: 288 | AZ44: 294 | BA44: 345 | BB44: 351 | BC44: 586 | BD44: 44 | BE44: 16332 | BF44: 1557 | BG44: 1456 | BH44: 6991 | BI44: 726
B45: 02 | C45: 38 | D45: 5668 | E45: C.S. SANTA MARIA | F45: 9521 | H45: 4716 | I45: 4805 | K45: 83 | L45: 85 | M45: 79 | N45: 81 | O45: 77 | P45: 79 | Q45: 77 | R45: 78 | S45: 77 | T45: 79 | U45: 411 | V45: 419 | W45: 182 | X45: 185 | Y45: 548 | Z45: 558 | AA45: 172 | AB45: 175 | AC45: 405 | AD45: 413 | AE45: 347 | AF45: 353 | AG45: 346 | AH45: 352 | AI45: 347 | AJ45: 354 | AK45: 282 | AL45: 287 | AM45: 253 | AN45: 258 | AO45: 217 | AP45: 221 | AQ45: 204 | AR45: 208 | AS45: 176 | AT45: 180 | AU45: 132 | AV45: 134 | AW45: 117 | AX45: 119 | AY45: 84 | AZ45: 85 | BA45: 100 | BB45: 102 | BC45: 170 | BD45: 13 | BE45: 4737 | BF45: 451 | BG45: 422 | BH45: 2027 | BI45: 210
B46: 02 | C46: 39 | D46: 5669 | E46: P.S. CHONTA | F46: 4596 | H46: 2279 | I46: 2317 | K46: 40 | L46: 41 | M46: 39 | N46: 39 | O46: 38 | P46: 38 | Q46: 37 | R46: 38 | S46: 37 | T46: 38 | U46: 200 | V46: 201 | W46: 88 | X46: 89 | Y46: 266 | Z46: 268 | AA46: 83 | AB46: 84 | AC46: 195 | AD46: 199 | AE46: 167 | AF46: 171 | AG46: 167 | AH46: 171 | AI46: 168 | AJ46: 171 | AK46: 136 | AL46: 138 | AM46: 122 | AN46: 124 | AO46: 104 | AP46: 107 | AQ46: 99 | AR46: 100 | AS46: 85 | AT46: 87 | AU46: 64 | AV46: 65 | AW46: 56 | AX46: 58 | AY46: 40 | AZ46: 41 | BA46: 48 | BB46: 49 | BC46: 82 | BD46: 6 | BE46: 2286 | BF46: 218 | BG46: 204 | BH46: 979 | BI46: 102
B47: 02 | C47: 40 | D47: 5671 | E47: P.S. ZAPATA | F47: 2299 | H47: 1140 | I47: 1159 | K47: 20 | L47: 20 | M47: 19 | N47: 20 | O47: 19 | P47: 19 | Q47: 19 | R47: 19 | S47: 19 | T47: 19 | U47: 99 | V47: 101 | W47: 44 | X47: 45 | Y47: 132 | Z47: 135 | AA47: 42 | AB47: 42 | AC47: 98 | AD47: 99 | AE47: 83 | AF47: 85 | AG47: 84 | AH47: 85 | AI47: 84 | AJ47: 85 | AK47: 68 | AL47: 69 | AM47: 61 | AN47: 62 | AO47: 52 | AP47: 54 | AQ47: 50 | AR47: 50 | AS47: 43 | AT47: 43 | AU47: 32 | AV47: 32 | AW47: 28 | AX47: 29 | AY47: 20 | AZ47: 21 | BA47: 24 | BB47: 25 | BC47: 41 | BD47: 3 | BE47: 1143 | BF47: 109 | BG47: 102 | BH47: 489 | BI47: 51
B48: 02 | C48: 41 | D48: 5670 | E48: P.S. AMADO VELASQUEZ | F48: 8536 | H48: 4226 | I48: 4310 | K48: 74 | L48: 76 | M48: 71 | N48: 73 | O48: 70 | P48: 71 | Q48: 69 | R48: 70 | S48: 69 | T48: 71 | U48: 369 | V48: 375 | W48: 163 | X48: 166 | Y48: 491 | Z48: 500 | AA48: 154 | AB48: 157 | AC48: 363 | AD48: 370 | AE48: 311 | AF48: 317 | AG48: 310 | AH48: 317 | AI48: 311 | AJ48: 318 | AK48: 252 | AL48: 257 | AM48: 226 | AN48: 231 | AO48: 194 | AP48: 198 | AQ48: 183 | AR48: 187 | AS48: 158 | AT48: 161 | AU48: 118 | AV48: 121 | AW48: 105 | AX48: 107 | AY48: 75 | AZ48: 76 | BA48: 90 | BB48: 91 | BC48: 152 | BD48: 11 | BE48: 4246 | BF48: 405 | BG48: 379 | BH48: 1818 | BI48: 189
B49: 02 | C49: 42 | D49: 5672 | E49: P.S. SAN BARTOLOME | F49: 7879 | H49: 3902 | I49: 3977 | K49: 68 | L49: 70 | M49: 66 | N49: 67 | O49: 64 | P49: 66 | Q49: 64 | R49: 65 | S49: 64 | T49: 65 | U49: 341 | V49: 346 | W49: 151 | X49: 154 | Y49: 453 | Z49: 462 | AA49: 142 | AB49: 145 | AC49: 334 | AD49: 341 | AE49: 287 | AF49: 292 | AG49: 287 | AH49: 292 | AI49: 287 | AJ49: 293 | AK49: 233 | AL49: 237 | AM49: 209 | AN49: 213 | AO49: 179 | AP49: 183 | AQ49: 169 | AR49: 173 | AS49: 146 | AT49: 148 | AU49: 109 | AV49: 112 | AW49: 97 | AX49: 98 | AY49: 69 | AZ49: 71 | BA49: 83 | BB49: 84 | BC49: 141 | BD49: 11 | BE49: 3920 | BF49: 374 | BG49: 349 | BH49: 1678 | BI49: 174
A50: 150811 | C50: 43 | D50: 150811 | E50: DISTRITO SAYAN | F50: 23919 | H50: 11843 | I50: 12076 | K50: 221 | L50: 225 | M50: 218 | N50: 222 | O50: 216 | P50: 221 | Q50: 216 | R50: 221 | S50: 217 | T50: 222 | U50: 1121 | V50: 1145 | W50: 471 | X50: 480 | Y50: 1412 | Z50: 1439 | AA50: 461 | AB50: 471 | AC50: 1128 | AD50: 1150 | AE50: 976 | AF50: 995 | AG50: 914 | AH50: 931 | AI50: 847 | AJ50: 863 | AK50: 674 | AL50: 687 | AM50: 658 | AN50: 670 | AO50: 507 | AP50: 517 | AQ50: 430 | AR50: 439 | AS50: 362 | AT50: 369 | AU50: 276 | AV50: 281 | AW50: 233 | AX50: 238 | AY50: 153 | AZ50: 155 | BA50: 132 | BB50: 135 | BC50: 454 | BD50: 34 | BE50: 11475 | BF50: 1165 | BG50: 1173 | BH50: 4928 | BI50: 562
B51: 03 | C51: 44 | D51: 5780 | E51: C.S. SAYAN | F51: 9568 | H51: 4741 | I51: 4827 | K51: 88 | L51: 90 | M51: 87 | N51: 89 | O51: 86 | P51: 88 | Q51: 86 | R51: 88 | S51: 87 | T51: 88 | U51: 450 | V51: 457 | W51: 189 | X51: 191 | Y51: 567 | Z51: 575 | AA51: 185 | AB51: 188 | AC51: 451 | AD51: 459 | AE51: 390 | AF51: 397 | AG51: 365 | AH51: 373 | AI51: 339 | AJ51: 345 | AK51: 269 | AL51: 275 | AM51: 263 | AN51: 268 | AO51: 204 | AP51: 207 | AQ51: 173 | AR51: 176 | AS51: 144 | AT51: 147 | AU51: 110 | AV51: 113 | AW51: 94 | AX51: 95 | AY51: 61 | AZ51: 63 | BA51: 53 | BB51: 55 | BC51: 182 | BD51: 13 | BE51: 4589 | BF51: 466 | BG51: 469 | BH51: 1971 | BI51: 226
B52: 03 | C52: 45 | D52: 5774 | E52: C.S. 9 DE OCTUBRE | F52: 5023 | H52: 2494 | I52: 2529 | K52: 47 | L52: 47 | M52: 46 | N52: 46 | O52: 46 | P52: 46 | Q52: 46 | R52: 46 | S52: 46 | T52: 46 | U52: 237 | V52: 239 | W52: 99 | X52: 101 | Y52: 298 | Z52: 300 | AA52: 98 | AB52: 98 | AC52: 237 | AD52: 241 | AE52: 205 | AF52: 209 | AG52: 192 | AH52: 195 | AI52: 178 | AJ52: 181 | AK52: 142 | AL52: 144 | AM52: 138 | AN52: 141 | AO52: 106 | AP52: 109 | AQ52: 90 | AR52: 92 | AS52: 76 | AT52: 78 | AU52: 58 | AV52: 59 | AW52: 49 | AX52: 50 | AY52: 32 | AZ52: 33 | BA52: 28 | BB52: 28 | BC52: 95 | BD52: 7 | BE52: 2410 | BF52: 245 | BG52: 246 | BH52: 1035 | BI52: 118
B53: 03 | C53: 46 | D53: 5781 | E53: P.S. CHAMBARA | F53: 957 | H53: 468 | I53: 489 | K53: 9 | L53: 9 | M53: 9 | N53: 9 | O53: 8 | P53: 9 | Q53: 8 | R53: 9 | S53: 9 | T53: 9 | U53: 45 | V53: 46 | W53: 18 | X53: 20 | Y53: 54 | Z53: 60 | AA53: 18 | AB53: 20 | AC53: 45 | AD53: 46 | AE53: 39 | AF53: 40 | AG53: 37 | AH53: 37 | AI53: 34 | AJ53: 34 | AK53: 27 | AL53: 27 | AM53: 26 | AN53: 27 | AO53: 20 | AP53: 21 | AQ53: 17 | AR53: 18 | AS53: 14 | AT53: 15 | AU53: 11 | AV53: 11 | AW53: 9 | AX53: 10 | AY53: 6 | AZ53: 6 | BA53: 5 | BB53: 6 | BC53: 18 | BD53: 1 | BE53: 459 | BF53: 47 | BG53: 47 | BH53: 197 | BI53: 22
B54: 03 | C54: 47 | D54: 5775 | E54: P.S. LA MERCED | F54: 1196 | H54: 591 | I54: 605 | K54: 11 | L54: 11 | M54: 11 | N54: 11 | O54: 11 | P54: 11 | Q54: 11 | R54: 11 | S54: 11 | T54: 11 | U54: 55 | V54: 58 | W54: 24 | X54: 24 | Y54: 70 | Z54: 72 | AA54: 22 | AB54: 24 | AC54: 56 | AD54: 58 | AE54: 50 | AF54: 50 | AG54: 46 | AH54: 46 | AI54: 43 | AJ54: 43 | AK54: 34 | AL54: 34 | AM54: 33 | AN54: 33 | AO54: 25 | AP54: 26 | AQ54: 21 | AR54: 22 | AS54: 18 | AT54: 19 | AU54: 14 | AV54: 14 | AW54: 12 | AX54: 12 | AY54: 7 | AZ54: 8 | BA54: 6 | BB54: 7 | BC54: 23 | BD54: 2 | BE54: 574 | BF54: 58 | BG54: 59 | BH54: 246 | BI54: 28
B55: 03 | C55: 48 | D55: 5776 | E55: P.S. LA VILLA | F55: 6219 | H55: 3076 | I55: 3143 | K55: 57 | L55: 59 | M55: 56 | N55: 58 | O55: 56 | P55: 58 | Q55: 56 | R55: 58 | S55: 56 | T55: 58 | U55: 291 | V55: 298 | W55: 122 | X55: 125 | Y55: 366 | Z55: 375 | AA55: 120 | AB55: 123 | AC55: 293 | AD55: 298 | AE55: 254 | AF55: 259 | AG55: 238 | AH55: 242 | AI55: 220 | AJ55: 225 | AK55: 176 | AL55: 179 | AM55: 171 | AN55: 174 | AO55: 132 | AP55: 134 | AQ55: 112 | AR55: 114 | AS55: 94 | AT55: 96 | AU55: 72 | AV55: 73 | AW55: 60 | AX55: 62 | AY55: 40 | AZ55: 40 | BA55: 34 | BB55: 35 | BC55: 118 | BD55: 9 | BE55: 2983 | BF55: 303 | BG55: 306 | BH55: 1281 | BI55: 146
B56: 03 | C56: 49 | D56: 5777 | E56: P.S. EL AHORCADO | F56: 478 | H56: 226 | I56: 252 | K56: 4 | L56: 5 | M56: 4 | N56: 5 | O56: 4 | P56: 5 | Q56: 4 | R56: 5 | S56: 4 | T56: 5 | U56: 20 | V56: 25 | W56: 9 | X56: 10 | Y56: 27 | Z56: 30 | AA56: 8 | AB56: 10 | AC56: 23 | AD56: 24 | AE56: 19 | AF56: 20 | AG56: 18 | AH56: 19 | AI56: 17 | AJ56: 17 | AK56: 13 | AL56: 14 | AM56: 13 | AN56: 14 | AO56: 10 | AP56: 10 | AQ56: 8 | AR56: 9 | AS56: 7 | AT56: 8 | AU56: 5 | AV56: 6 | AW56: 4 | AX56: 5 | AY56: 3 | AZ56: 3 | BA56: 2 | BB56: 3 | BC56: 9 | BD56: 1 | BE56: 230 | BF56: 23 | BG56: 23 | BH56: 99 | BI56: 11
B57: 03 | C57: 50 | D57: 6726 | E57: P.S. LA UNION | F57: 478 | H57: 226 | I57: 252 | K57: 4 | L57: 5 | M57: 4 | N57: 5 | O57: 4 | P57: 5 | Q57: 4 | R57: 5 | S57: 4 | T57: 5 | U57: 20 | V57: 25 | W57: 9 | X57: 10 | Y57: 27 | Z57: 30 | AA57: 8 | AB57: 10 | AC57: 23 | AD57: 24 | AE57: 19 | AF57: 20 | AG57: 18 | AH57: 19 | AI57: 17 | AJ57: 17 | AK57: 13 | AL57: 14 | AM57: 13 | AN57: 14 | AO57: 10 | AP57: 10 | AQ57: 8 | AR57: 9 | AS57: 7 | AT57: 8 | AU57: 5 | AV57: 6 | AW57: 4 | AX57: 5 | AY57: 3 | AZ57: 3 | BA57: 2 | BB57: 3 | BC57: 9 | BD57: 1 | BE57: 230 | BF57: 23 | BG57: 23 | BH57: 99 | BI57: 11
A58: 150812 | C58: 51 | D58: 150812 | E58: DISTRITO VEGUETA | F58: 21604 | H58: 10697 | I58: 10907 | K58: 229 | L58: 233 | M58: 210 | N58: 214 | O58: 196 | P58: 199 | Q58: 186 | R58: 190 | S58: 180 | T58: 184 | U58: 919 | V58: 935 | W58: 408 | X58: 417 | Y58: 1293 | Z58: 1320 | AA58: 426 | AB58: 435 | AC58: 1012 | AD58: 1031 | AE58: 813 | AF58: 829 | AG58: 745 | AH58: 759 | AI58: 702 | AJ58: 716 | AK58: 620 | AL58: 632 | AM58: 594 | AN58: 606 | AO58: 492 | AP58: 501 | AQ58: 422 | AR58: 431 | AS58: 356 | AT58: 362 | AU58: 283 | AV58: 289 | AW58: 244 | AX58: 249 | AY58: 180 | AZ58: 184 | BA58: 187 | BB58: 191 | BC58: 471 | BD58: 35 | BE58: 10553 | BF58: 1012 | BG58: 1069 | BH58: 4483 | BI58: 583
B59: 04 | C59: 52 | D59: 5673 | E59: C.S. VEGUETA | F59: 6481 | H59: 3207 | I59: 3274 | K59: 69 | L59: 70 | M59: 63 | N59: 64 | O59: 59 | P59: 60 | Q59: 56 | R59: 57 | S59: 54 | T59: 55 | U59: 273 | V59: 281 | W59: 122 | X59: 125 | Y59: 388 | Z59: 396 | AA59: 128 | AB59: 131 | AC59: 304 | AD59: 309 | AE59: 244 | AF59: 249 | AG59: 223 | AH59: 228 | AI59: 211 | AJ59: 215 | AK59: 186 | AL59: 190 | AM59: 178 | AN59: 182 | AO59: 148 | AP59: 150 | AQ59: 127 | AR59: 129 | AS59: 106 | AT59: 109 | AU59: 85 | AV59: 87 | AW59: 73 | AX59: 75 | AY59: 54 | AZ59: 55 | BA59: 56 | BB59: 57 | BC59: 141 | BD59: 11 | BE59: 3166 | BF59: 304 | BG59: 321 | BH59: 1345 | BI59: 175
B60: 04 | C60: 53 | D60: 5674 | E60: P.S. MAZO | F60: 2160 | H60: 1069 | I60: 1091 | K60: 23 | L60: 23 | M60: 21 | N60: 21 | O60: 20 | P60: 20 | Q60: 19 | R60: 19 | S60: 18 | T60: 19 | U60: 92 | V60: 94 | W60: 41 | X60: 41 | Y60: 130 | Z60: 132 | AA60: 42 | AB60: 44 | AC60: 101 | AD60: 103 | AE60: 81 | AF60: 83 | AG60: 74 | AH60: 76 | AI60: 70 | AJ60: 72 | AK60: 62 | AL60: 63 | AM60: 59 | AN60: 61 | AO60: 49 | AP60: 50 | AQ60: 42 | AR60: 43 | AS60: 36 | AT60: 36 | AU60: 28 | AV60: 29 | AW60: 24 | AX60: 25 | AY60: 18 | AZ60: 18 | BA60: 19 | BB60: 19 | BC60: 47 | BD60: 4 | BE60: 1055 | BF60: 101 | BG60: 107 | BH60: 448 | BI60: 58
B61: 04 | C61: 54 | D61: 5675 | E61: P.S. PRIMAVERA | F61: 2809 | H61: 1389 | I61: 1420 | K61: 30 | L61: 30 | M61: 27 | N61: 28 | O61: 25 | P61: 26 | Q61: 24 | R61: 25 | S61: 23 | T61: 24 | U61: 119 | V61: 123 | W61: 53 | X61: 55 | Y61: 168 | Z61: 172 | AA61: 56 | AB61: 56 | AC61: 132 | AD61: 134 | AE61: 105 | AF61: 108 | AG61: 97 | AH61: 99 | AI61: 91 | AJ61: 93 | AK61: 81 | AL61: 82 | AM61: 77 | AN61: 79 | AO61: 64 | AP61: 65 | AQ61: 55 | AR61: 56 | AS61: 46 | AT61: 47 | AU61: 37 | AV61: 37 | AW61: 32 | AX61: 32 | AY61: 23 | AZ61: 24 | BA61: 24 | BB61: 25 | BC61: 61 | BD61: 5 | BE61: 1372 | BF61: 132 | BG61: 139 | BH61: 583 | BI61: 76
B62: 04 | C62: 55 | D62: 5676 | E62: P.S. JOSE C.MARIATEGUI | F62: 5185 | H62: 2570 | I62: 2615 | K62: 55 | L62: 56 | M62: 51 | N62: 51 | O62: 47 | P62: 48 | Q62: 45 | R62: 45 | S62: 43 | T62: 44 | U62: 221 | V62: 224 | W62: 98 | X62: 100 | Y62: 310 | Z62: 318 | AA62: 102 | AB62: 104 | AC62: 243 | AD62: 247 | AE62: 195 | AF62: 199 | AG62: 179 | AH62: 182 | AI62: 168 | AJ62: 172 | AK62: 149 | AL62: 151 | AM62: 143 | AN62: 145 | AO62: 118 | AP62: 120 | AQ62: 102 | AR62: 103 | AS62: 86 | AT62: 87 | AU62: 68 | AV62: 69 | AW62: 58 | AX62: 60 | AY62: 44 | AZ62: 44 | BA62: 45 | BB62: 46 | BC62: 114 | BD62: 7 | BE62: 2533 | BF62: 243 | BG62: 256 | BH62: 1076 | BI62: 140
B63: 04 | C63: 56 | D63: 5677 | E63: P.S. MEDIO MUNDO | F63: 4105 | H63: 2036 | I63: 2069 | K63: 44 | L63: 44 | M63: 40 | N63: 41 | O63: 37 | P63: 37 | Q63: 35 | R63: 36 | S63: 34 | T63: 35 | U63: 176 | V63: 177 | W63: 78 | X63: 79 | Y63: 246 | Z63: 250 | AA63: 82 | AB63: 82 | AC63: 192 | AD63: 196 | AE63: 154 | AF63: 158 | AG63: 142 | AH63: 144 | AI63: 133 | AJ63: 136 | AK63: 118 | AL63: 120 | AM63: 113 | AN63: 115 | AO63: 94 | AP63: 95 | AQ63: 80 | AR63: 82 | AS63: 67 | AT63: 69 | AU63: 54 | AV63: 55 | AW63: 47 | AX63: 47 | AY63: 34 | AZ63: 35 | BA63: 36 | BB63: 36 | BC63: 89 | BD63: 7 | BE63: 2005 | BF63: 192 | BG63: 203 | BH63: 852 | BI63: 111
B64: 04 | C64: 57 | D64: 5678 | E64: P.S. TIROLER | F64: 864 | H64: 423 | I64: 441 | K64: 9 | L64: 9 | M64: 8 | N64: 9 | O64: 8 | P64: 8 | Q64: 7 | R64: 8 | S64: 7 | T64: 8 | U64: 36 | V64: 38 | W64: 16 | X64: 17 | Y64: 49 | Z64: 54 | AA64: 16 | AB64: 18 | AC64: 41 | AD64: 41 | AE64: 33 | AF64: 33 | AG64: 30 | AH64: 30 | AI64: 28 | AJ64: 29 | AK64: 25 | AL64: 25 | AM64: 24 | AN64: 24 | AO64: 20 | AP64: 20 | AQ64: 17 | AR64: 17 | AS64: 14 | AT64: 15 | AU64: 11 | AV64: 12 | AW64: 10 | AX64: 10 | AY64: 7 | AZ64: 8 | BA64: 7 | BB64: 8 | BC64: 19 | BD64: 1 | BE64: 422 | BF64: 40 | BG64: 43 | BH64: 179 | BI64: 23
A65: 150900 | C65: 58 | D65: 150900 | E65: PROVINCIA OYON | F65: 22593 | H65: 11184 | I65: 11409 | K65: 247 | L65: 252 | M65: 236 | N65: 241 | O65: 229 | P65: 234 | Q65: 226 | R65: 230 | S65: 225 | T65: 229 | U65: 1160 | V65: 1183 | W65: 493 | X65: 502 | Y65: 1285 | Z65: 1311 | AA65: 346 | AB65: 353 | AC65: 851 | AD65: 868 | AE65: 853 | AF65: 869 | AG65: 830 | AH65: 847 | AI65: 870 | AJ65: 888 | AK65: 627 | AL65: 640 | AM65: 598 | AN65: 609 | AO65: 473 | AP65: 483 | AQ65: 394 | AR65: 402 | AS65: 314 | AT65: 321 | AU65: 309 | AV65: 315 | AW65: 256 | AX65: 262 | AY65: 205 | AZ65: 209 | BA65: 157 | BB65: 161 | BC65: 528 | BD65: 38 | BE65: 10478 | BF65: 1152 | BG65: 894 | BH65: 4036 | BI65: 653
A66: 150901 | C66: 59 | D66: 150901 | E66: DISTRITO OYÓN | F66: 14310 | H66: 7085 | I66: 7225 | K66: 167 | L66: 170 | M66: 160 | N66: 163 | O66: 155 | P66: 158 | Q66: 153 | R66: 155 | S66: 152 | T66: 155 | U66: 782 | V66: 797 | W66: 330 | X66: 337 | Y66: 851 | Z66: 868 | AA66: 226 | AB66: 231 | AC66: 563 | AD66: 575 | AE66: 595 | AF66: 606 | AG66: 574 | AH66: 585 | AI66: 588 | AJ66: 600 | AK66: 396 | AL66: 404 | AM66: 361 | AN66: 369 | AO66: 284 | AP66: 289 | AQ66: 206 | AR66: 210 | AS66: 141 | AT66: 143 | AU66: 142 | AV66: 144 | AW66: 104 | AX66: 107 | AY66: 86 | AZ66: 88 | BA66: 69 | BB66: 71 | BC66: 347 | BD66: 26 | BE66: 6532 | BF66: 777 | BG66: 622 | BH66: 2589 | BI66: 430
B67: 05 | C67: 60 | D67: 5659 | E67: C.S. OYON | F67: 11219 | H67: 5553 | I67: 5666 | K67: 131 | L67: 133 | M67: 126 | N67: 128 | O67: 121 | P67: 124 | Q67: 119 | R67: 122 | S67: 119 | T67: 121 | U67: 612 | V67: 626 | W67: 259 | X67: 263 | Y67: 667 | Z67: 680 | AA67: 178 | AB67: 181 | AC67: 442 | AD67: 451 | AE67: 467 | AF67: 476 | AG67: 450 | AH67: 459 | AI67: 461 | AJ67: 471 | AK67: 310 | AL67: 317 | AM67: 283 | AN67: 289 | AO67: 222 | AP67: 227 | AQ67: 162 | AR67: 165 | AS67: 110 | AT67: 112 | AU67: 111 | AV67: 113 | AW67: 82 | AX67: 84 | AY67: 67 | AZ67: 69 | BA67: 54 | BB67: 55 | BC67: 273 | BD67: 21 | BE67: 5121 | BF67: 609 | BG67: 487 | BH67: 2029 | BI67: 336
B68: 05 | C68: 61 | D68: 5660 | E68: P.S. MALLAY | F68: 1216 | H68: 599 | I68: 617 | K68: 14 | L68: 15 | M68: 13 | N68: 14 | O68: 13 | P68: 14 | Q68: 13 | R68: 13 | S68: 13 | T68: 13 | U68: 66 | V68: 68 | W68: 28 | X68: 29 | Y68: 71 | Z68: 75 | AA68: 18 | AB68: 20 | AC68: 48 | AD68: 49 | AE68: 51 | AF68: 51 | AG68: 49 | AH68: 50 | AI68: 50 | AJ68: 51 | AK68: 34 | AL68: 34 | AM68: 31 | AN68: 31 | AO68: 24 | AP68: 25 | AQ68: 17 | AR68: 18 | AS68: 12 | AT68: 12 | AU68: 12 | AV68: 12 | AW68: 9 | AX68: 9 | AY68: 7 | AZ68: 8 | BA68: 6 | BB68: 6 | BC68: 29 | BD68: 2 | BE68: 555 | BF68: 66 | BG68: 53 | BH68: 220 | BI68: 37
B69: 05 | C69: 62 | D69: 5661 | E69: P.S. NAVA | F69: 86 | H69: 37 | I69: 49 | K69: 1 | L69: 1 | M69: 1 | N69: 1 | O69: 1 | P69: 1 | Q69: 1 | R69: 1 | S69: 1 | T69: 1 | U69: 5 | V69: 5 | W69: 2 | X69: 2 | Y69: 5 | Z69: 6 | AA69: 0 | AB69: 2 | AC69: 3 | AD69: 4 | AE69: 3 | AF69: 4 | AG69: 3 | AH69: 4 | AI69: 3 | AJ69: 4 | AK69: 2 | AL69: 3 | AM69: 2 | AN69: 2 | AO69: 1 | AP69: 2 | AQ69: 1 | AR69: 1 | AS69: 1 | AT69: 1 | AU69: 1 | AV69: 1 | AW69: 0 | AX69: 1 | AY69: 0 | AZ69: 1 | BA69: 0 | BB69: 1 | BC69: 2 | BD69: 0 | BE69: 39 | BF69: 5 | BG69: 4 | BH69: 16 | BI69: 3
B70: 05 | C70: 63 | D70: 5662 | E70: P.S. TINTA | F70: 501 | H70: 242 | I70: 259 | K70: 6 | L70: 6 | M70: 5 | N70: 6 | O70: 5 | P70: 6 | Q70: 5 | R70: 6 | S70: 5 | T70: 6 | U70: 25 | V70: 30 | W70: 12 | X70: 12 | Y70: 29 | Z70: 31 | AA70: 8 | AB70: 8 | AC70: 19 | AD70: 20 | AE70: 20 | AF70: 21 | AG70: 20 | AH70: 21 | AI70: 21 | AJ70: 21 | AK70: 14 | AL70: 14 | AM70: 13 | AN70: 13 | AO70: 10 | AP70: 10 | AQ70: 7 | AR70: 8 | AS70: 5 | AT70: 5 | AU70: 5 | AV70: 5 | AW70: 3 | AX70: 4 | AY70: 3 | AZ70: 3 | BA70: 2 | BB70: 3 | BC70: 12 | BD70: 1 | BE70: 229 | BF70: 27 | BG70: 22 | BH70: 91 | BI70: 15
B71: 05 | C71: 64 | D71: 5648 | E71: P.S.RAPAZ | F71: 1288 | H71: 635 | I71: 653 | K71: 15 | L71: 15 | M71: 14 | N71: 15 | O71: 14 | P71: 14 | Q71: 14 | R71: 14 | S71: 14 | T71: 14 | U71: 70 | V71: 72 | W71: 30 | X71: 30 | Y71: 75 | Z71: 80 | AA71: 20 | AB71: 22 | AC71: 51 | AD71: 51 | AE71: 53 | AF71: 55 | AG71: 51 | AH71: 52 | AI71: 52 | AJ71: 54 | AK71: 36 | AL71: 36 | AM71: 33 | AN71: 33 | AO71: 26 | AP71: 26 | AQ71: 18 | AR71: 19 | AS71: 13 | AT71: 13 | AU71: 13 | AV71: 13 | AW71: 9 | AX71: 10 | AY71: 8 | AZ71: 8 | BA71: 6 | BB71: 7 | BC71: 31 | BD71: 2 | BE71: 588 | BF71: 70 | BG71: 56 | BH71: 233 | BI71: 39
A72: 150902 | C72: 65 | D72: 150902 | E72: DISTRITO ANDAJES | F72: 1049 | H72: 516 | I72: 533 | K72: 3 | L72: 3 | M72: 3 | N72: 4 | O72: 4 | P72: 4 | Q72: 4 | R72: 5 | S72: 5 | T72: 6 | U72: 28 | V72: 31 | W72: 12 | X72: 14 | Y72: 38 | Z72: 42 | AA72: 12 | AB72: 12 | AC72: 27 | AD72: 28 | AE72: 33 | AF72: 33 | AG72: 24 | AH72: 25 | AI72: 37 | AJ72: 37 | AK72: 28 | AL72: 29 | AM72: 38 | AN72: 38 | AO72: 25 | AP72: 25 | AQ72: 32 | AR72: 33 | AS72: 30 | AT72: 30 | AU72: 45 | AV72: 46 | AW72: 26 | AX72: 26 | AY72: 38 | AZ72: 38 | BA72: 24 | BB72: 24 | BC72: 9 | BD72: 0 | BE72: 485 | BF72: 25 | BG72: 29 | BH72: 168 | BI72: 11
B73: 05 | C73: 66 | D73: 5654 | E73: P.S. ANDAJES | F73: 1049 | H73: 516 | I73: 533 | K73: 3 | L73: 3 | M73: 3 | N73: 4 | O73: 4 | P73: 4 | Q73: 4 | R73: 5 | S73: 5 | T73: 6 | U73: 28 | V73: 31 | W73: 12 | X73: 14 | Y73: 38 | Z73: 42 | AA73: 12 | AB73: 12 | AC73: 27 | AD73: 28 | AE73: 33 | AF73: 33 | AG73: 24 | AH73: 25 | AI73: 37 | AJ73: 37 | AK73: 28 | AL73: 29 | AM73: 38 | AN73: 38 | AO73: 25 | AP73: 25 | AQ73: 32 | AR73: 33 | AS73: 30 | AT73: 30 | AU73: 45 | AV73: 46 | AW73: 26 | AX73: 26 | AY73: 38 | AZ73: 38 | BA73: 24 | BB73: 24 | BC73: 9 | BD73: 0 | BE73: 485 | BF73: 25 | BG73: 29 | BH73: 168 | BI73: 11
A74: 150903 | C74: 67 | D74: 150903 | E74: DISTRITO CAUJUL | F74: 1024 | H74: 504 | I74: 520 | K74: 8 | L74: 8 | M74: 9 | N74: 9 | O74: 10 | P74: 10 | Q74: 11 | R74: 11 | S74: 11 | T74: 11 | U74: 54 | V74: 56 | W74: 19 | X74: 20 | Y74: 46 | Z74: 50 | AA74: 15 | AB74: 16 | AC74: 38 | AD74: 38 | AE74: 31 | AF74: 32 | AG74: 35 | AH74: 35 | AI74: 35 | AJ74: 35 | AK74: 26 | AL74: 27 | AM74: 33 | AN74: 34 | AO74: 24 | AP74: 25 | AQ74: 19 | AR74: 20 | AS74: 18 | AT74: 19 | AU74: 25 | AV74: 26 | AW74: 14 | AX74: 14 | AY74: 12 | AZ74: 13 | BA74: 11 | BB74: 11 | BC74: 19 | BD74: 1 | BE74: 485 | BF74: 42 | BG74: 28 | BH74: 190 | BI74: 23
B75: 05 | C75: 68 | D75: 5655 | E75: P.S. CAUJUL | F75: 1024 | H75: 504 | I75: 520 | K75: 8 | L75: 8 | M75: 9 | N75: 9 | O75: 10 | P75: 10 | Q75: 11 | R75: 11 | S75: 11 | T75: 11 | U75: 54 | V75: 56 | W75: 19 | X75: 20 | Y75: 46 | Z75: 50 | AA75: 15 | AB75: 16 | AC75: 38 | AD75: 38 | AE75: 31 | AF75: 32 | AG75: 35 | AH75: 35 | AI75: 35 | AJ75: 35 | AK75: 26 | AL75: 27 | AM75: 33 | AN75: 34 | AO75: 24 | AP75: 25 | AQ75: 19 | AR75: 20 | AS75: 18 | AT75: 19 | AU75: 25 | AV75: 26 | AW75: 14 | AX75: 14 | AY75: 12 | AZ75: 13 | BA75: 11 | BB75: 11 | BC75: 19 | BD75: 1 | BE75: 485 | BF75: 42 | BG75: 28 | BH75: 190 | BI75: 23
A76: 150904 | C76: 69 | D76: 150904 | E76: DISTRITO COCHAMARCA | F76: 1600 | H76: 787 | I76: 813 | K76: 14 | L76: 15 | M76: 15 | N76: 16 | O76: 16 | P76: 17 | Q76: 17 | R76: 18 | S76: 18 | T76: 18 | U76: 98 | V76: 101 | W76: 40 | X76: 42 | Y76: 103 | Z76: 106 | AA76: 26 | AB76: 27 | AC76: 57 | AD76: 59 | AE76: 38 | AF76: 39 | AG76: 54 | AH76: 55 | AI76: 54 | AJ76: 56 | AK76: 47 | AL76: 47 | AM76: 38 | AN76: 39 | AO76: 29 | AP76: 30 | AQ76: 31 | AR76: 32 | AS76: 25 | AT76: 26 | AU76: 18 | AV76: 19 | AW76: 19 | AX76: 20 | AY76: 16 | AZ76: 17 | BA76: 14 | BB76: 14 | BC76: 33 | BD76: 2 | BE76: 784 | BF76: 94 | BG76: 60 | BH76: 271 | BI76: 41
B77: 03 | C77: 70 | D77: 5783 | E77: P.S. COCHAMARCA | F77: 640 | H77: 313 | I77: 327 | K77: 6 | L77: 6 | M77: 6 | N77: 6 | O77: 6 | P77: 7 | Q77: 7 | R77: 7 | S77: 7 | T77: 7 | U77: 38 | V77: 40 | W77: 16 | X77: 16 | Y77: 40 | Z77: 42 | AA77: 10 | AB77: 11 | AC77: 23 | AD77: 24 | AE77: 16 | AF77: 16 | AG77: 22 | AH77: 23 | AI77: 22 | AJ77: 23 | AK77: 19 | AL77: 20 | AM77: 16 | AN77: 16 | AO77: 12 | AP77: 12 | AQ77: 12 | AR77: 13 | AS77: 10 | AT77: 10 | AU77: 7 | AV77: 7 | AW77: 7 | AX77: 8 | AY77: 6 | AZ77: 7 | BA77: 5 | BB77: 6 | BC77: 13 | BD77: 1 | BE77: 313 | BF77: 38 | BG77: 24 | BH77: 108 | BI77: 16
B78: 03 | C78: 71 | D78: 5784 | E78: P.S. COLCAPAMPA | F78: 720 | H78: 350 | I78: 370 | K78: 6 | L78: 7 | M78: 7 | N78: 7 | O78: 7 | P78: 8 | Q78: 8 | R78: 8 | S78: 8 | T78: 9 | U78: 44 | V78: 47 | W78: 18 | X78: 20 | Y78: 46 | Z78: 50 | AA78: 12 | AB78: 12 | AC78: 26 | AD78: 26 | AE78: 16 | AF78: 17 | AG78: 24 | AH78: 24 | AI78: 24 | AJ78: 24 | AK78: 20 | AL78: 21 | AM78: 16 | AN78: 17 | AO78: 13 | AP78: 13 | AQ78: 14 | AR78: 15 | AS78: 11 | AT78: 12 | AU78: 8 | AV78: 9 | AW78: 9 | AX78: 9 | AY78: 7 | AZ78: 8 | BA78: 6 | BB78: 7 | BC78: 15 | BD78: 1 | BE78: 353 | BF78: 42 | BG78: 27 | BH78: 122 | BI78: 19
B79: 03 | C79: 72 | D79: 5785 | E79: P.S. YARUCAYA | F79: 240 | H79: 114 | I79: 126 | K79: 2 | L79: 2 | M79: 2 | N79: 3 | O79: 2 | P79: 3 | Q79: 2 | R79: 3 | S79: 2 | T79: 3 | U79: 15 | V79: 15 | W79: 6 | X79: 6 | Y79: 14 | Z79: 17 | AA79: 4 | AB79: 4 | AC79: 8 | AD79: 9 | AE79: 6 | AF79: 6 | AG79: 8 | AH79: 8 | AI79: 8 | AJ79: 9 | AK79: 7 | AL79: 7 | AM79: 6 | AN79: 6 | AO79: 4 | AP79: 5 | AQ79: 4 | AR79: 5 | AS79: 4 | AT79: 4 | AU79: 3 | AV79: 3 | AW79: 3 | AX79: 3 | AY79: 2 | AZ79: 3 | BA79: 2 | BB79: 2 | BC79: 5 | BD79: 0 | BE79: 118 | BF79: 14 | BG79: 9 | BH79: 41 | BI79: 6
A80: 150905 | C80: 73 | D80: 150905 | E80: DISTRITO NAVAN | F80: 1181 | H80: 581 | I80: 600 | K80: 18 | L80: 19 | M80: 15 | N80: 16 | O80: 13 | P80: 13 | Q80: 11 | R80: 11 | S80: 10 | T80: 10 | U80: 42 | V80: 46 | W80: 19 | X80: 21 | Y80: 47 | Z80: 50 | AA80: 14 | AB80: 14 | AC80: 50 | AD80: 50 | AE80: 42 | AF80: 43 | AG80: 39 | AH80: 39 | AI80: 41 | AJ80: 42 | AK80: 38 | AL80: 39 | AM80: 35 | AN80: 35 | AO80: 28 | AP80: 29 | AQ80: 20 | AR80: 21 | AS80: 30 | AT80: 30 | AU80: 13 | AV80: 14 | AW80: 31 | AX80: 31 | AY80: 14 | AZ80: 15 | BA80: 11 | BB80: 12 | BC80: 41 | BD80: 3 | BE80: 572 | BF80: 46 | BG80: 27 | BH80: 219 | BI80: 51
B81: 05 | C81: 74 | D81: 5656 | E81: P.S. NAVAN | F81: 1181 | H81: 581 | I81: 600 | K81: 18 | L81: 19 | M81: 15 | N81: 16 | O81: 13 | P81: 13 | Q81: 11 | R81: 11 | S81: 10 | T81: 10 | U81: 42 | V81: 46 | W81: 19 | X81: 21 | Y81: 47 | Z81: 50 | AA81: 14 | AB81: 14 | AC81: 50 | AD81: 50 | AE81: 42 | AF81: 43 | AG81: 39 | AH81: 39 | AI81: 41 | AJ81: 42 | AK81: 38 | AL81: 39 | AM81: 35 | AN81: 35 | AO81: 28 | AP81: 29 | AQ81: 20 | AR81: 21 | AS81: 30 | AT81: 30 | AU81: 13 | AV81: 14 | AW81: 31 | AX81: 31 | AY81: 14 | AZ81: 15 | BA81: 11 | BB81: 12 | BC81: 41 | BD81: 3 | BE81: 572 | BF81: 46 | BG81: 27 | BH81: 219 | BI81: 51
A82: 150906 | C82: 75 | D82: 150906 | E82: DISTRITO PACHANGARA | F82: 3429 | H82: 1699 | I82: 1730 | K82: 37 | L82: 37 | M82: 33 | N82: 34 | O82: 31 | P82: 32 | Q82: 30 | R82: 30 | S82: 29 | T82: 29 | U82: 152 | V82: 156 | W82: 70 | X82: 71 | Y82: 197 | Z82: 198 | AA82: 53 | AB82: 53 | AC82: 116 | AD82: 118 | AE82: 114 | AF82: 116 | AG82: 105 | AH82: 107 | AI82: 115 | AJ82: 118 | AK82: 92 | AL82: 94 | AM82: 93 | AN82: 94 | AO82: 83 | AP82: 85 | AQ82: 85 | AR82: 87 | AS82: 71 | AT82: 72 | AU82: 65 | AV82: 67 | AW82: 62 | AX82: 64 | AY82: 38 | AZ82: 39 | BA82: 28 | BB82: 29 | BC82: 79 | BD82: 6 | BE82: 1620 | BF82: 168 | BG82: 128 | BH82: 599 | BI82: 97
B83: 05 | C83: 76 | D83: 5657 | E83: C.S. CHURIN | F83: 2675 | H83: 1325 | I83: 1350 | K83: 29 | L83: 29 | M83: 26 | N83: 26 | O83: 24 | P83: 25 | Q83: 23 | R83: 24 | S83: 22 | T83: 23 | U83: 119 | V83: 121 | W83: 55 | X83: 55 | Y83: 153 | Z83: 155 | AA83: 41 | AB83: 43 | AC83: 91 | AD83: 92 | AE83: 88 | AF83: 90 | AG83: 82 | AH83: 84 | AI83: 90 | AJ83: 92 | AK83: 72 | AL83: 73 | AM83: 72 | AN83: 74 | AO83: 65 | AP83: 66 | AQ83: 66 | AR83: 68 | AS83: 55 | AT83: 57 | AU83: 51 | AV83: 52 | AW83: 49 | AX83: 49 | AY83: 30 | AZ83: 30 | BA83: 22 | BB83: 22 | BC83: 62 | BD83: 4 | BE83: 1264 | BF83: 131 | BG83: 100 | BH83: 467 | BI83: 75
B84: 05 | C84: 77 | D84: 5658 | E84: P.S. PACHANGARA | F84: 343 | H84: 162 | I84: 181 | K84: 3 | L84: 4 | M84: 3 | N84: 4 | O84: 3 | P84: 3 | Q84: 3 | R84: 3 | S84: 3 | T84: 3 | U84: 15 | V84: 16 | W84: 6 | X84: 8 | Y84: 18 | Z84: 21 | AA84: 4 | AB84: 6 | AC84: 11 | AD84: 12 | AE84: 12 | AF84: 12 | AG84: 10 | AH84: 11 | AI84: 11 | AJ84: 12 | AK84: 9 | AL84: 10 | AM84: 9 | AN84: 10 | AO84: 8 | AP84: 9 | AQ84: 8 | AR84: 9 | AS84: 7 | AT84: 7 | AU84: 6 | AV84: 7 | AW84: 6 | AX84: 7 | AY84: 4 | AZ84: 4 | BA84: 3 | BB84: 3 | BC84: 8 | BD84: 1 | BE84: 162 | BF84: 17 | BG84: 13 | BH84: 60 | BI84: 10
B85: 05 | C85: 78 | D85: 5649 | E85: P.S. HUANCAHUASI | F85: 411 | H85: 197 | I85: 214 | K85: 4 | L85: 5 | M85: 4 | N85: 4 | O85: 4 | P85: 4 | Q85: 3 | R85: 4 | S85: 3 | T85: 4 | U85: 17 | V85: 20 | W85: 8 | X85: 9 | Y85: 22 | Z85: 26 | AA85: 6 | AB85: 6 | AC85: 14 | AD85: 14 | AE85: 14 | AF85: 14 | AG85: 12 | AH85: 13 | AI85: 14 | AJ85: 14 | AK85: 11 | AL85: 11 | AM85: 11 | AN85: 11 | AO85: 10 | AP85: 10 | AQ85: 10 | AR85: 11 | AS85: 8 | AT85: 9 | AU85: 8 | AV85: 8 | AW85: 7 | AX85: 8 | AY85: 4 | AZ85: 5 | BA85: 3 | BB85: 4 | BC85: 9 | BD85: 1 | BE85: 194 | BF85: 20 | BG85: 15 | BH85: 72 | BI85: 12
C86: 79 | E86: DISTRITO IHUARI | F86: 1137 | H86: 560 | I86: 577 | K86: 8 | L86: 9 | M86: 10 | N86: 11 | O86: 11 | P86: 12 | Q86: 12 | R86: 12 | S86: 12 | T86: 13 | U86: 58 | V86: 62 | W86: 19 | X86: 21 | Y86: 49 | Z86: 51 | AA86: 16 | AB86: 16 | AC86: 46 | AD86: 46 | AE86: 39 | AF86: 40 | AG86: 34 | AH86: 35 | AI86: 34 | AJ86: 34 | AK86: 32 | AL86: 32 | AM86: 36 | AN86: 36 | AO86: 28 | AP86: 29 | AQ86: 22 | AR86: 22 | AS86: 18 | AT86: 19 | AU86: 28 | AV86: 28 | AW86: 19 | AX86: 19 | AY86: 13 | AZ86: 14 | BA86: 16 | BB86: 16 | BC86: 19 | BD86: 1 | BE86: 534 | BF86: 42 | BG86: 32 | BH86: 219 | BI86: 23
C87: 80 | D87: 150600 | E87: P.S. ACOTAMA (IHUARI) | F87: 1137 | H87: 560 | I87: 577 | K87: 8 | L87: 9 | M87: 10 | N87: 11 | O87: 11 | P87: 12 | Q87: 12 | R87: 12 | S87: 12 | T87: 13 | U87: 58 | V87: 62 | W87: 19 | X87: 21 | Y87: 49 | Z87: 51 | AA87: 16 | AB87: 16 | AC87: 46 | AD87: 46 | AE87: 39 | AF87: 40 | AG87: 34 | AH87: 35 | AI87: 34 | AJ87: 34 | AK87: 32 | AL87: 32 | AM87: 36 | AN87: 36 | AO87: 28 | AP87: 29 | AQ87: 22 | AR87: 22 | AS87: 18 | AT87: 19 | AU87: 28 | AV87: 28 | AW87: 19 | AX87: 19 | AY87: 13 | AZ87: 14 | BA87: 16 | BB87: 16 | BC87: 19 | BD87: 1 | BE87: 534 | BF87: 42 | BG87: 32 | BH87: 219 | BI87: 23
A88: 150606 | B88: 03 | C88: 81
C89: 82 | E89: MICRORED HUAURA | F89: =SUM(H89:I89) -> 37728 | H89: =AA89+AC89+AE89+AG89+AI89+AK89+AM89+AO89+AQ89+AS89+AU89+AW89+AY89+BA89+K89+M89+O89+Q89+S89+U89+W89+Y89 -> 18678 | I89: =AB89+AD89+AF89+AH89+AJ89+AL89+AN89+AP89+AR89+AT89+AV89+AX89+AZ89+BB89+L89+N89+P89+R89+T89+V89+X89+Z89 -> 19050 | K89: =K13+K24 -> 335 | L89: 342 | M89: 323 | N89: 330 | O89: 317 | P89: 323 | Q89: 315 | R89: 321 | S89: 317 | T89: 323 | U89: =U13+U24 -> 1703 | V89: =V13+V24 -> 1737 | W89: 762 | X89: 776 | Y89: 2413 | Z89: 2461 | AA89: 777 | AB89: 794 | AC89: 1735 | AD89: 1770 | AE89: 1433 | AF89: 1461 | AG89: 1365 | AH89: 1393 | AI89: 1280 | AJ89: 1305 | AK89: 1107 | AL89: 1130 | AM89: 1024 | AN89: 1045 | AO89: 855 | AP89: 872 | AQ89: 682 | AR89: 695 | AS89: 559 | AT89: 569 | AU89: 464 | AV89: 473 | AW89: 409 | AX89: 417 | AY89: 254 | AZ89: 258 | BA89: 249 | BB89: 255 | BC89: 691 | BD89: 52 | BE89: 18648 | BF89: 1882 | BG89: 1927 | BH89: 8134 | BI89: 856
B90: 1 | C90: 83 | E90: MICRORED HUALMAY | F90: =SUM(H90:I90) -> 81484 | H90: =AA90+AC90+AE90+AG90+AI90+AK90+AM90+AO90+AQ90+AS90+AU90+AW90+AY90+BA90+K90+M90+O90+Q90+S90+U90+W90+Y90 -> 40347 | I90: =AB90+AD90+AF90+AH90+AJ90+AL90+AN90+AP90+AR90+AT90+AV90+AX90+AZ90+BB90+L90+N90+P90+R90+T90+V90+X90+Z90 -> 41137 | K90: =K12+K16+K20+K44 -> 705 | L90: 719 | M90: 670 | N90: 684 | O90: 648 | P90: 660 | Q90: 636 | R90: 650 | S90: 635 | T90: 648 | U90: =U12+U16+U20+U44 -> 3361 | V90: =V12+V16+V20+V44 -> 3426 | W90: 1493 | X90: 1525 | Y90: 4529 | Z90: 4621 | AA90: 1452 | AB90: 1478 | AC90: 3540 | AD90: 3610 | AE90: 3038 | AF90: 3098 | AG90: 2983 | AH90: 3042 | AI90: 2941 | AJ90: 3000 | AK90: 2540 | AL90: 2589 | AM90: 2223 | AN90: 2265 | AO90: 2005 | AP90: 2046 | AQ90: 1789 | AR90: 1822 | AS90: 1483 | AT90: 1511 | AU90: 1196 | AV90: 1220 | AW90: 975 | AX90: 993 | AY90: 710 | AZ90: 722 | BA90: 795 | BB90: 808 | BC90: 1449 | BD90: 110 | BE90: 40788 | BF90: 3755 | BG90: 3628 | BH90: 17501 | BI90: 1795
B91: 2 | C91: 84 | E91: MICRORED SAYAN | F91: =SUM(H91:I91) -> 49146 | H91: 24325 | I91: 24821 | K91: =K30+K50+K77+K65 -> 489 | L91: 498 | M91: 478 | N91: 488 | O91: 472 | P91: 484 | Q91: 472 | R91: 481 | S91: 473 | T91: 482 | U91: =U30+U50+U77+U65 -> 2430 | V91: =V30+V50+V77+V65 -> 2482 | W91: 1014 | X91: 1034 | Y91: 2827 | Z91: 2883 | AA91: 847 | AB91: 867 | AC91: 2086 | AD91: 2128 | AE91: 1918 | AF91: 1954 | AG91: 1827 | AH91: 1864 | AI91: 1801 | AJ91: 1837 | AK91: 1372 | AL91: 1400 | AM91: 1330 | AN91: 1355 | AO91: 1047 | AP91: 1069 | AQ91: 872 | AR91: 890 | AS91: 722 | AT91: 737 | AU91: 622 | AV91: 633 | AW91: 525 | AX91: 537 | AY91: 384 | AZ91: 392 | BA91: 317 | BB91: 326 | BC91: 1028 | BD91: 75 | BE91: 23172 | BF91: 2437 | BG91: 2155 | BH91: 9423 | BI91: 1272
B92: 3 | C92: 85 | E92: MICRORED VEGUETA | F92: =SUM(H92:I92) -> 21604 | H92: 10697 | I92: 10907 | K92: =K58 -> 229 | L92: 233 | M92: 210 | N92: 214 | O92: 196 | P92: 199 | Q92: 186 | R92: 190 | S92: 180 | T92: 184 | U92: =U58 -> 919 | V92: =V58 -> 935 | W92: 408 | X92: 417 | Y92: 1293 | Z92: 1320 | AA92: 426 | AB92: 435 | AC92: 1012 | AD92: 1031 | AE92: 813 | AF92: 829 | AG92: 745 | AH92: 759 | AI92: 702 | AJ92: 716 | AK92: 620 | AL92: 632 | AM92: 594 | AN92: 606 | AO92: 492 | AP92: 501 | AQ92: 422 | AR92: 431 | AS92: 356 | AT92: 362 | AU92: 283 | AV92: 289 | AW92: 244 | AX92: 249 | AY92: 180 | AZ92: 184 | BA92: 187 | BB92: 191 | BC92: 471 | BD92: 35 | BE92: 10553 | BF92: 1012 | BG92: 1069 | BH92: 4483 | BI92: 583
B93: 4 | C93: 86 | E93: MICRORED CHURIN - OYON | F93: 22555 | H93: 11147 | I93: 11408 | K93: =K18+K35+K40+K67+K73+K75+K81+K83 -> 230 | L93: 235 | M93: 217 | N93: 224 | O93: 210 | P93: 216 | Q93: 206 | R93: 212 | S93: 207 | T93: 212 | U93: =U18+U35+U40+U67+U73+U75+U81+U83 -> 1082 | V93: =V18+V35+V40+V67+V73+V75+V81+V83 -> 1112 | W93: 471 | X93: 482 | Y93: 1208 | Z93: 1249 | AA93: 319 | AB93: 327 | AC93: 792 | AD93: 805 | AE93: 796 | AF93: 811 | AG93: 772 | AH93: 787 | AI93: 837 | AJ93: 855 | AK93: 639 | AL93: 655 | AM93: 618 | AN93: 630 | AO93: 538 | AP93: 550 | AQ93: 439 | AR93: 449 | AS93: 401 | AT93: 409 | AU93: 377 | AV93: 387 | AW93: 338 | AX93: 344 | AY93: 251 | AZ93: 255 | BA93: 199 | BB93: 202 | BC93: 497 | BD93: 35 | BE93: 10534 | BF93: 1099 | BG93: 813 | BH93: 3961 | BI93: 611

Sheet Pobla_EESS
D2: POBLACIÓN SEGÚN DISTRITOS Y EE.SS - 2014
D8: SIN MICRORED | K8: MICRORED HUALMAY
D9: DISTRITO | E9: POBLACIÓN | F9: EE.SS | G9: POBLACIÓN | H9: MASCULINO | I9: FEMENINO | K9: DISTRITO | L9: POBLACIÓN | M9: EE.SS | N9: POBLACIÓN | O9: MASCULINO | P9: FEMENINO
D10: HUACHO | E10: =G10 -> 44966 | F10: HOSPITAL G. HUACHO | G10: =VLOOKUP($F10,Poblacion!$E$8:$I$87,2,FALSE) -> 44966 | H10: =VLOOKUP($F10,Poblacion!$E$8:$I$87,4,FALSE) -> 22263 | I10: =VLOOKUP($F10,Poblacion!$E$8:$I$87,5,FALSE) -> 22703 | K10: HUALMAY | L10: =SUM(N10:N12) -> 28486 | M10: C.S. HUALMAY | N10: =VLOOKUP($M10,Poblacion!$E$8:$I$87,2,FALSE) -> 14243 | O10: =VLOOKUP($M10,Poblacion!$E$8:$I$87,4,FALSE) -> 7052 | P10: =VLOOKUP($M10,Poblacion!$E$8:$I$87,5,FALSE) -> 7191
D11: HUACHO | F11: CLINICA SAN PEDRO | G11: 0 | K11: HUALMAY | M11: P.S. DGO. MANDAMIENTO | N11: =VLOOKUP($M11,Poblacion!$E$8:$I$87,2,FALSE) -> 9970 | O11: =VLOOKUP($M11,Poblacion!$E$8:$I$87,4,FALSE) -> 4938 | P11: =VLOOKUP($M11,Poblacion!$E$8:$I$87,5,FALSE) -> 5032
D12: HUACHO | F12: ESSALUD GUSTAVO LA NATA | G12: 0 | K12: HUALMAY | M12: P.S. CAMPO ALEGRE | N12: =VLOOKUP($M12,Poblacion!$E$8:$I$87,2,FALSE) -> 4273 | O12: =VLOOKUP($M12,Poblacion!$E$8:$I$87,4,FALSE) -> 2117 | P12: =VLOOKUP($M12,Poblacion!$E$8:$I$87,5,FALSE) -> 2156
D13: HUACHO | F13: CLINICA SAN BARTOLOME | G13: 0 | K13: S.MARIA | L13: =SUM(N13:N17) -> 32831 | M13: C.S. SANTA MARIA | N13: =VLOOKUP($M13,Poblacion!$E$8:$I$87,2,FALSE) -> 9521 | O13: =VLOOKUP($M13,Poblacion!$E$8:$I$87,4,FALSE) -> 4716 | P13: =VLOOKUP($M13,Poblacion!$E$8:$I$87,5,FALSE) -> 4805
D14: HUACHO | F14: GOLD ESTANDAR EIRL. | G14: 0 | K14: S.MARIA | M14: P.S. CHONTA | N14: =VLOOKUP($M14,Poblacion!$E$8:$I$87,2,FALSE) -> 4596 | O14: =VLOOKUP($M14,Poblacion!$E$8:$I$87,4,FALSE) -> 2279 | P14: =VLOOKUP($M14,Poblacion!$E$8:$I$87,5,FALSE) -> 2317
D15: CARQUIN | F15: INSITUTO NACIONAL PENITENCIARIO CARQUIN | G15: 0 | K15: S.MARIA | M15: P.S. ZAPATA | N15: =VLOOKUP($M15,Poblacion!$E$8:$I$87,2,FALSE) -> 2299 | O15: =VLOOKUP($M15,Poblacion!$E$8:$I$87,4,FALSE) -> 1140 | P15: =VLOOKUP($M15,Poblacion!$E$8:$I$87,5,FALSE) -> 1159
F16: OTROS ESTABLECIMIENTOS | G16: 0 | K16: S.MARIA | M16: P.S. AMADO VELASQUEZ | N16: =VLOOKUP($M16,Poblacion!$E$8:$I$87,2,FALSE) -> 8536 | O16: =VLOOKUP($M16,Poblacion!$E$8:$I$87,4,FALSE) -> 4226 | P16: =VLOOKUP($M16,Poblacion!$E$8:$I$87,5,FALSE) -> 4310
D17: TOTAL SIN MICRORED | G17: =SUM(G10:G16) -> 44966 | H17: =SUM(H10:H16) -> 22263 | I17: =SUM(I10:I16) -> 22703 | K17: S.MARIA | M17: P.S. SAN BARTOLOME | N17: =VLOOKUP($M17,Poblacion!$E$8:$I$87,2,FALSE) -> 7879 | O17: =VLOOKUP($M17,Poblacion!$E$8:$I$87,4,FALSE) -> 3902 | P17: =VLOOKUP($M17,Poblacion!$E$8:$I$87,5,FALSE) -> 3977
D18: Elaboración: Área de Estadística - RIS Huaura Oyón. | K18: CARQUIN | L18: =SUM(N18) -> 6736 | M18: P.S. CARQUIN | N18: =VLOOKUP($M18,Poblacion!$E$8:$I$87,2,FALSE) -> 6736 | O18: =VLOOKUP($M18,Poblacion!$E$8:$I$87,4,FALSE) -> 3332 | P18: =VLOOKUP($M18,Poblacion!$E$8:$I$87,5,FALSE) -> 3404
K19: HUACHO | L19: =SUM(N19) -> 13431 | M19: C. S. MANZANARES | N19: =VLOOKUP($M19,Poblacion!$E$8:$I$87,2,FALSE) -> 13431 | O19: =VLOOKUP($M19,Poblacion!$E$8:$I$87,4,FALSE) -> 6652 | P19: =VLOOKUP($M19,Poblacion!$E$8:$I$87,5,FALSE) -> 6779
K20: TOTAL MCR HUALMAY | M20: TOTAL MICRORED HUALMAY | N20: =SUM(N10:N19) -> 81484 | O20: =SUM(O10:O19) -> 40354 | P20: =SUM(P10:P19) -> 41130
K21: =D18 -> Elaboración: Área de Estadística - RIS Huaura Oyón.
D24: MICRORED HUAURA | K24: MICRORED VEGUETA
D25: DISTRITO | E25: POBLACIÓN | F25: EE.SS | G25: POBLACIÓN | H25: MASCULINO | I25: FEMENINO | K25: DISTRITO | L25: POBLACIÓN | M25: EE.SS | N25: POBLACIÓN | O25: MASCULINO | P25: FEMENINO
D26: HUAURA | E26: =SUM(G26:G30) -> 34967 | F26: C.S. HUAURA | G26: =VLOOKUP($F26,Poblacion!$E$8:$I$87,2,FALSE) -> 16084 | H26: =VLOOKUP($F26,Poblacion!$E$8:$I$87,4,FALSE) -> 7965 | I26: =VLOOKUP($F26,Poblacion!$E$8:$I$87,5,FALSE) -> 8119 | K26: VEGUETA | L26: =SUM(N26:N31) -> 21604 | M26: C.S. VEGUETA | N26: =VLOOKUP($M26,Poblacion!$E$8:$I$87,2,FALSE) -> 6481 | O26: =VLOOKUP($M26,Poblacion!$E$8:$I$87,4,FALSE) -> 3207 | P26: =VLOOKUP($M26,Poblacion!$E$8:$I$87,5,FALSE) -> 3274
D27: HUAURA | F27: C.MAT.INF.EL SOCORRO | G27: =VLOOKUP($F27,Poblacion!$E$8:$I$87,2,FALSE) -> 12658 | H27: =VLOOKUP($F27,Poblacion!$E$8:$I$87,4,FALSE) -> 6268 | I27: =VLOOKUP($F27,Poblacion!$E$8:$I$87,5,FALSE) -> 6390 | K27: VEGUETA | M27: P.S. MAZO | N27: =VLOOKUP($M27,Poblacion!$E$8:$I$87,2,FALSE) -> 2160 | O27: =VLOOKUP($M27,Poblacion!$E$8:$I$87,4,FALSE) -> 1069 | P27: =VLOOKUP($M27,Poblacion!$E$8:$I$87,5,FALSE) -> 1091
D28: HUAURA | F28: P.S. HUMAYA | G28: =VLOOKUP($F28,Poblacion!$E$8:$I$87,2,FALSE) -> 3637 | H28: =VLOOKUP($F28,Poblacion!$E$8:$I$87,4,FALSE) -> 1804 | I28: =VLOOKUP($F28,Poblacion!$E$8:$I$87,5,FALSE) -> 1833 | K28: VEGUETA | M28: P.S. PRIMAVERA | N28: =VLOOKUP($M28,Poblacion!$E$8:$I$87,2,FALSE) -> 2809 | O28: =VLOOKUP($M28,Poblacion!$E$8:$I$87,4,FALSE) -> 1389 | P28: =VLOOKUP($M28,Poblacion!$E$8:$I$87,5,FALSE) -> 1420
D29: HUAURA | F29: P.S. VILCAHUAURA | G29: =VLOOKUP($F29,Poblacion!$E$8:$I$87,2,FALSE) -> 2098 | H29: =VLOOKUP($F29,Poblacion!$E$8:$I$87,4,FALSE) -> 1040 | I29: =VLOOKUP($F29,Poblacion!$E$8:$I$87,5,FALSE) -> 1058 | K29: VEGUETA | M29: P.S. JOSE C.MARIATEGUI | N29: =VLOOKUP($M29,Poblacion!$E$8:$I$87,2,FALSE) -> 5185 | O29: =VLOOKUP($M29,Poblacion!$E$8:$I$87,4,FALSE) -> 2570 | P29: =VLOOKUP($M29,Poblacion!$E$8:$I$87,5,FALSE) -> 2615
D30: HUAURA | F30: P.S. PEÑICO | G30: =VLOOKUP($F30,Poblacion!$E$8:$I$87,2,FALSE) -> 490 | H30: =VLOOKUP($F30,Poblacion!$E$8:$I$87,4,FALSE) -> 238 | I30: =VLOOKUP($F30,Poblacion!$E$8:$I$87,5,FALSE) -> 252 | K30: VEGUETA | M30: P.S. MEDIO MUNDO | N30: =VLOOKUP($M30,Poblacion!$E$8:$I$87,2,FALSE) -> 4105 | O30: =VLOOKUP($M30,Poblacion!$E$8:$I$87,4,FALSE) -> 2036 | P30: =VLOOKUP($M30,Poblacion!$E$8:$I$87,5,FALSE) -> 2069
D31: AMBAR | E31: =SUM(G31:G32) -> 2761 | F31: C.S. AMBAR | G31: =VLOOKUP($F31,Poblacion!$E$8:$I$87,2,FALSE) -> 1651 | H31: =VLOOKUP($F31,Poblacion!$E$8:$I$87,4,FALSE) -> 816 | I31: =VLOOKUP($F31,Poblacion!$E$8:$I$87,5,FALSE) -> 835 | K31: VEGUETA | M31: P.S. TIROLER | N31: =VLOOKUP($M31,Poblacion!$E$8:$I$87,2,FALSE) -> 864 | O31: =VLOOKUP($M31,Poblacion!$E$8:$I$87,4,FALSE) -> 423 | P31: =VLOOKUP($M31,Poblacion!$E$8:$I$87,5,FALSE) -> 441
D32: AMBAR | F32: P.S. AYNACA | G32: =VLOOKUP($F32,Poblacion!$E$8:$I$87,2,FALSE) -> 1110 | H32: =VLOOKUP($F32,Poblacion!$E$8:$I$87,4,FALSE) -> 548 | I32: =VLOOKUP($F32,Poblacion!$E$8:$I$87,5,FALSE) -> 562 | K32: TOTAL MCR VEGUETA | N32: =SUM(N26:N31) -> 21604 | O32: =SUM(O26:O31) -> 10694 | P32: =SUM(P26:P31) -> 10910
D33: TOTAL MCR HUAURA | F33: TOTAL MICRORED HUAURA | G33: =SUM(G26:G32) -> 37728 | H33: 18679 | I33: =SUM(I26:I32) -> 19049 | K33: =K21 -> Elaboración: Área de Estadística - RIS Huaura Oyón.
D34: =K21 -> Elaboración: Área de Estadística - RIS Huaura Oyón.
D38: MICRORED SAYAN | K38: MICRORED CHURIN OYÓN
D39: DISTRITO | E39: POBLACIÓN | F39: EE.SS | G39: POBLACIÓN | H39: MASCULINO | I39: FEMENINO | K39: DISTRITO | L39: POBLACIÓN | M39: EE.SS | N39: POBLACIÓN | O39: MASCULINO | P39: FEMENINO
D40: SAYAN | E40: =SUM(G40:G46) -> 23919 | F40: C.S. SAYAN | G40: =VLOOKUP($F40,Poblacion!$E$8:$I$87,2,FALSE) -> 9568 | H40: =VLOOKUP($F40,Poblacion!$E$8:$I$87,4,FALSE) -> 4741 | I40: =VLOOKUP($F40,Poblacion!$E$8:$I$87,5,FALSE) -> 4827 | K40: PACHANGARA | L40: =SUM(N40:N42) -> 3429 | M40: C.S. CHURIN | N40: =VLOOKUP(M40,Poblacion!$E$5:$I$88,2,FALSE) -> 2675 | O40: =VLOOKUP(M40,Poblacion!$E$5:$I$88,4,FALSE) -> 1325 | P40: =VLOOKUP(M40,Poblacion!$E$5:$I$88,5,FALSE) -> 1350
D41: SAYAN | F41: C.S. 9 DE OCTUBRE | G41: =VLOOKUP($F41,Poblacion!$E$8:$I$87,2,FALSE) -> 5023 | H41: =VLOOKUP($F41,Poblacion!$E$8:$I$87,4,FALSE) -> 2494 | I41: =VLOOKUP($F41,Poblacion!$E$8:$I$87,5,FALSE) -> 2529 | K41: PACHANGARA | M41: P.S. PACHANGARA | N41: =VLOOKUP(M41,Poblacion!$E$5:$I$88,2,FALSE) -> 343 | O41: =VLOOKUP(M41,Poblacion!$E$5:$I$88,4,FALSE) -> 162 | P41: =VLOOKUP(M41,Poblacion!$E$5:$I$88,5,FALSE) -> 181
D42: SAYAN | F42: P.S. CHAMBARA | G42: =VLOOKUP($F42,Poblacion!$E$8:$I$87,2,FALSE) -> 957 | H42: =VLOOKUP($F42,Poblacion!$E$8:$I$87,4,FALSE) -> 468 | I42: =VLOOKUP($F42,Poblacion!$E$8:$I$87,5,FALSE) -> 489 | K42: PACHANGARA | M42: P.S. HUANCAHUASI | N42: =VLOOKUP(M42,Poblacion!$E$5:$I$88,2,FALSE) -> 411 | O42: =VLOOKUP(M42,Poblacion!$E$5:$I$88,4,FALSE) -> 197 | P42: =VLOOKUP(M42,Poblacion!$E$5:$I$88,5,FALSE) -> 214
D43: SAYAN | F43: P.S. LA MERCED | G43: =VLOOKUP($F43,Poblacion!$E$8:$I$87,2,FALSE) -> 1196 | H43: =VLOOKUP($F43,Poblacion!$E$8:$I$87,4,FALSE) -> 591 | I43: =VLOOKUP($F43,Poblacion!$E$8:$I$87,5,FALSE) -> 605 | K43: OYON | L43: =SUM(N43:N47) -> 14310 | M43: C.S. OYON | N43: =VLOOKUP(M43,Poblacion!$E$5:$I$88,2,FALSE) -> 11219 | O43: =VLOOKUP(M43,Poblacion!$E$5:$I$88,4,FALSE) -> 5553 | P43: =VLOOKUP(M43,Poblacion!$E$5:$I$88,5,FALSE) -> 5666
D44: SAYAN | F44: P.S. LA VILLA | G44: =VLOOKUP($F44,Poblacion!$E$8:$I$87,2,FALSE) -> 6219 | H44: =VLOOKUP($F44,Poblacion!$E$8:$I$87,4,FALSE) -> 3076 | I44: =VLOOKUP($F44,Poblacion!$E$8:$I$87,5,FALSE) -> 3143 | K44: OYON | M44: P.S. MALLAY | N44: =VLOOKUP(M44,Poblacion!$E$5:$I$88,2,FALSE) -> 1216 | O44: =VLOOKUP(M44,Poblacion!$E$5:$I$88,4,FALSE) -> 599 | P44: =VLOOKUP(M44,Poblacion!$E$5:$I$88,5,FALSE) -> 617
D45: SAYAN | F45: P.S. EL AHORCADO | G45: =VLOOKUP($F45,Poblacion!$E$8:$I$87,2,FALSE) -> 478 | H45: =VLOOKUP($F45,Poblacion!$E$8:$I$87,4,FALSE) -> 226 | I45: =VLOOKUP($F45,Poblacion!$E$8:$I$87,5,FALSE) -> 252 | K45: OYON | M45: P.S. NAVA | N45: =VLOOKUP(M45,Poblacion!$E$5:$I$88,2,FALSE) -> 86 | O45: =VLOOKUP(M45,Poblacion!$E$5:$I$88,4,FALSE) -> 37 | P45: =VLOOKUP(M45,Poblacion!$E$5:$I$88,5,FALSE) -> 49
D46: SAYAN | F46: P.S. LA UNION | G46: =VLOOKUP($F46,Poblacion!$E$8:$I$87,2,FALSE) -> 478 | H46: =VLOOKUP($F46,Poblacion!$E$8:$I$87,4,FALSE) -> 226 | I46: =VLOOKUP($F46,Poblacion!$E$8:$I$87,5,FALSE) -> 252 | K46: OYON | M46: P.S. TINTA | N46: =VLOOKUP(M46,Poblacion!$E$5:$I$88,2,FALSE) -> 501 | O46: =VLOOKUP(M46,Poblacion!$E$5:$I$88,4,FALSE) -> 242 | P46: =VLOOKUP(M46,Poblacion!$E$5:$I$88,5,FALSE) -> 259
D47: L.PRADO | E47: =SUM(G47:G50) -> 1994 | F47: P.S. AUQUIMARCA | G47: =VLOOKUP($F47,Poblacion!$E$8:$I$87,2,FALSE) -> 100 | H47: =VLOOKUP($F47,Poblacion!$E$8:$I$87,4,FALSE) -> 48 | I47: =VLOOKUP($F47,Poblacion!$E$8:$I$87,5,FALSE) -> 52 | K47: OYON | M47: P.S.RAPAZ | N47: =VLOOKUP(M47,Poblacion!$E$5:$I$88,2,FALSE) -> 1288 | O47: =VLOOKUP(M47,Poblacion!$E$5:$I$88,4,FALSE) -> 635 | P47: =VLOOKUP(M47,Poblacion!$E$5:$I$88,5,FALSE) -> 653
D48: L.PRADO | F48: P.S. PARAN | G48: =VLOOKUP($F48,Poblacion!$E$8:$I$87,2,FALSE) -> 997 | H48: =VLOOKUP($F48,Poblacion!$E$8:$I$87,4,FALSE) -> 491 | I48: =VLOOKUP($F48,Poblacion!$E$8:$I$87,5,FALSE) -> 506 | K48: ANDAJES | L48: =N48 -> 1049 | M48: P.S. ANDAJES | N48: =VLOOKUP(M48,Poblacion!$E$5:$I$88,2,FALSE) -> 1049 | O48: =VLOOKUP(M48,Poblacion!$E$5:$I$88,4,FALSE) -> 516 | P48: =VLOOKUP(M48,Poblacion!$E$5:$I$88,5,FALSE) -> 533
D49: L.PRADO | F49: P.S. SANTA CRUZ | G49: =VLOOKUP($F49,Poblacion!$E$8:$I$87,2,FALSE) -> 438 | H49: =VLOOKUP($F49,Poblacion!$E$8:$I$87,4,FALSE) -> 213 | I49: =VLOOKUP($F49,Poblacion!$E$8:$I$87,5,FALSE) -> 225 | K49: CAUJUL | L49: =N49 -> 1024 | M49: P.S. CAUJUL | N49: =VLOOKUP(M49,Poblacion!$E$5:$I$88,2,FALSE) -> 1024 | O49: =VLOOKUP(M49,Poblacion!$E$5:$I$88,4,FALSE) -> 504 | P49: =VLOOKUP(M49,Poblacion!$E$5:$I$88,5,FALSE) -> 520
D50: L.PRADO | F50: P.S. HUANANGUI | G50: =VLOOKUP($F50,Poblacion!$E$8:$I$87,2,FALSE) -> 459 | H50: =VLOOKUP($F50,Poblacion!$E$8:$I$87,4,FALSE) -> 216 | I50: =VLOOKUP($F50,Poblacion!$E$8:$I$87,5,FALSE) -> 243 | K50: NAVAN | L50: 1181 | M50: P.S. NAVAN | N50: =VLOOKUP(M50,Poblacion!$E$5:$I$88,2,FALSE) -> 1181 | O50: =VLOOKUP(M50,Poblacion!$E$5:$I$88,4,FALSE) -> 581 | P50: =VLOOKUP(M50,Poblacion!$E$5:$I$88,5,FALSE) -> 600
D51: COCHAMARCA | E51: =SUM(G51:G53) -> 1600 | F51: P.S. COCHAMARCA | G51: =VLOOKUP($F51,Poblacion!$E$8:$I$87,2,FALSE) -> 640 | H51: =VLOOKUP($F51,Poblacion!$E$8:$I$87,4,FALSE) -> 313 | I51: =VLOOKUP($F51,Poblacion!$E$8:$I$87,5,FALSE) -> 327 | K51: CHECRAS | L51: 1748 | M51: P.S. PUÑUN | N51: =VLOOKUP(M51,Poblacion!$E$5:$I$88,2,FALSE) -> 1748 | O51: =VLOOKUP(M51,Poblacion!$E$5:$I$88,4,FALSE) -> 863 | P51: =VLOOKUP(M51,Poblacion!$E$5:$I$88,5,FALSE) -> 885
D52: COCHAMARCA | F52: P.S. COLCAPAMPA | G52: =VLOOKUP($F52,Poblacion!$E$8:$I$87,2,FALSE) -> 720 | H52: =VLOOKUP($F52,Poblacion!$E$8:$I$87,4,FALSE) -> 350 | I52: =VLOOKUP($F52,Poblacion!$E$8:$I$87,5,FALSE) -> 370 | K52: PACCHO | L52: =SUM(N52:N55) -> 2188 | M52: C.S. PACCHO | N52: =VLOOKUP(M52,Poblacion!$E$5:$I$88,2,FALSE) -> 875 | O52: =VLOOKUP(M52,Poblacion!$E$5:$I$88,4,FALSE) -> 428 | P52: =VLOOKUP(M52,Poblacion!$E$5:$I$88,5,FALSE) -> 447
D53: COCHAMARCA | F53: P.S. YARUCAYA | G53: =VLOOKUP($F53,Poblacion!$E$8:$I$87,2,FALSE) -> 240 | H53: =VLOOKUP($F53,Poblacion!$E$8:$I$87,4,FALSE) -> 114 | I53: =VLOOKUP($F53,Poblacion!$E$8:$I$87,5,FALSE) -> 126 | K53: PACCHO | M53: P.S. LACSANGA | N53: =VLOOKUP(M53,Poblacion!$E$5:$I$88,2,FALSE) -> 548 | O53: =VLOOKUP(M53,Poblacion!$E$5:$I$88,4,FALSE) -> 266 | P53: =VLOOKUP(M53,Poblacion!$E$5:$I$88,5,FALSE) -> 282
D54: IHUARI - ACOTAMA | E54: =SUM(G54) -> 1137 | F54: P.S. ACOTAMA (IHUARI) | G54: =VLOOKUP($F54,Poblacion!$E$8:$I$87,2,FALSE) -> 1137 | H54: =VLOOKUP($F54,Poblacion!$E$8:$I$87,4,FALSE) -> 560 | I54: =VLOOKUP($F54,Poblacion!$E$8:$I$87,5,FALSE) -> 577 | K54: PACCHO | M54: P.S. AYARANGA | N54: =VLOOKUP(M54,Poblacion!$E$5:$I$88,2,FALSE) -> 328 | O54: =VLOOKUP(M54,Poblacion!$E$5:$I$88,4,FALSE) -> 156 | P54: =VLOOKUP(M54,Poblacion!$E$5:$I$88,5,FALSE) -> 172
D55: TOTAL MICRORED SAYAN | G55: =SUM(G40:G54) -> 28650 | H55: 14127 | I55: =SUM(I40:I54) -> 14523 | K55: PACCHO | M55: P.S. MUZGA | N55: =VLOOKUP(M55,Poblacion!$E$5:$I$88,2,FALSE) -> 437 | O55: =VLOOKUP(M55,Poblacion!$E$5:$I$88,4,FALSE) -> 211 | P55: =VLOOKUP(M55,Poblacion!$E$5:$I$88,5,FALSE) -> 226
D56: =K33 -> Elaboración: Área de Estadística - RIS Huaura Oyón. | K56: S.LEONOR | L56: =SUM(N56:N58) -> 1471 | M56: C.S. CHIUCHIN | N56: =VLOOKUP(M56,Poblacion!$E$5:$I$88,2,FALSE) -> 956 | O56: =VLOOKUP(M56,Poblacion!$E$5:$I$88,4,FALSE) -> 469 | P56: =VLOOKUP(M56,Poblacion!$E$5:$I$88,5,FALSE) -> 487
K57: S.LEONOR | M57: P.C. JUCUL | N57: =VLOOKUP(M57,Poblacion!$E$5:$I$88,2,FALSE) -> 74 | O57: =VLOOKUP(M57,Poblacion!$E$5:$I$88,4,FALSE) -> 27 | P57: =VLOOKUP(M57,Poblacion!$E$5:$I$88,5,FALSE) -> 47
K58: S.LEONOR | M58: P.S. PARQUIN | N58: =VLOOKUP(M58,Poblacion!$E$5:$I$88,2,FALSE) -> 441 | O58: =VLOOKUP(M58,Poblacion!$E$5:$I$88,4,FALSE) -> 213 | P58: =VLOOKUP(M58,Poblacion!$E$5:$I$88,5,FALSE) -> 228
K59: TOTAL MICRORED CHURIN - OYON | N59: =SUM(N40:N58) -> 26400 | O59: =SUM(O40:O58) -> 12984 | P59: =SUM(P40:P58) -> 13416
K60: =K33 -> Elaboración: Área de Estadística - RIS Huaura Oyón.
